Workbook

Sheet 评分表
A1: 指标分类 | B1: 基本信息 | H1: 18年 | J1: 19年 | L1: 20年 | N1: 产能信息 | V1: 企业盈利能力 | Y1: 银政企合作指标 | AE1: 行业引领力 | AG1: 成长速度 | AI1: 发展潜力 | AO1: 知识产权 | AU1: 绿色生产工艺 | AZ1: 清洁能源使用 安全生产管理 | BB1: 安全生产管理 | BE1: 区域重点企业 | BH1: 产业协作能力 | BK1: 营业收入 | BL1: 利润总额 | BM1: 纳税总额
A2: 指标项 | B2: 企业名称 | C2: 统一社会信用代码 | D2: 产业类别 | E2: 所属行业小类代码 | F2: 企业地址 | G2: 属地名称 | H2: 18年营业收入 | I2: 18年利润总额 | J2: 19年营业收入 | K2: 19年利润总额 | L2: 20年营业收入 | M2: 20年利润总额 | N2: 用地面积 | O2: 应纳税金 | P2: 年研发费用 | Q2: 社保人数 | R2: 综合能耗 | S2: 主要污染物排放当量 | T2: 资产总额 | U2: 负债总额 | V2: 连续3年盈利 | W2: 企业利润率 | X2: 企业连续3年亏损的 | Y2: 新增投资情况 | Z2: 有国家级荣誉称号、获奖证书及扶持资金 | AA2: 有省市级荣誉称号、获奖证书及扶持资金 | AB2: 有区级荣誉称号、获奖证书及扶持资金 | AC2: 获得银行贷款 | AD2: 获得融资 | AE2: 单项冠军产品 | AF2: 主导或参与标准制定企业 | AG2: 营业收入1亿元以上 | AH2: 增长（下降）速度 | AI2: 拥有专精特新称号 | AJ2: 拥有“独角兽”企业、“蹬羚”企业称号 | AK2: 拥有企业技术中心、工程技术中心 | AL2: 工业项目总投资 | AM2: 投入强度1000万或在3%以上 | AN2: 高新技术企业 | AO2: 知名品牌企业 | AP2: 企业产品进入本地区名优产品目录企业 | AQ2: 首台（套）、首批次、首版次企业 | AR2: 发明专利 | AS2: 实用新型专利 | AT2: PCT国际专利 | AU2: 绿色工厂称号企业 | AV2: 减排技术升级改造 | AW2: 环保检查、环保抽查中被发现问题 | AX2: 智能制造装备生产 | AY2: 使用环保节能进行生产 | AZ2: 企完成能耗目标任务企业 | BA2: 企业是否为能耗重点监测企业 | BB2: 发现安全风险隐患 | BC2: 发生安全事故 | BD2: 企业拥有ISO三体系数量 | BE2: 产业链链主、省级重点、市级30户龙头企业 | BF2: 市级100户重点企业、区（市）县重点企业 | BG2: 500强企业供应商体系企业 | BH2: 符合地区重点产业 | BI2: 企业为省、市重点企业的重要配套企业 | BJ2: 本地区重点企业的重要配套企业 | BK2: 营业收入（2020) | BL2: 利润总额(2020) | BM2: 纳税总额(2020）
A3: 指标单位 | H3: 万元 | I3: 万元 | J3: 万元 | K3: 万元 | L3: 万元 | M3: 万元 | N3: 亩 | O3: 万元 | P3: 万元 | Q3: 人 | R3: 吨标准煤 | S3: 吨 | T3: 万元 | U3: 万元 | Y3: 万元） | AR3: 件 | AS3: 件 | AT3: 件 | BK3: 万元 | BL3: 万元 | BM3: 万元
A4: 备注 | E4: 3位或4位 | G4: 园区名称或街道名称 | H4: 18年营业收入 | I4: 18年利润总额 | J4: 19年营业收入 | K4: 19年利润总额 | L4: 20年营业收入 | M4: 20年利润总额 | N4: 用地面积 | O4: 应纳税金（万元） | P4: 年研发费用（万元） | Q4: 社保人数 | R4: 吨标煤用量（吨） | S4: 总污染物排放量（吨） | T4: 资产总额 | U4: 负债总额 | V4: 企业连续3年盈利的、年度实现盈利的 | W4: 企业利润率（利润/营业收入）达到7%、10%、12%以上的 | X4: 是/否 | Y4: 投资设备金额（万元） | Z4: 请说明获得国家荣誉称号、获奖证书及扶持资金情况 | AA4: 请说明获得省级荣誉称号、获奖证书及扶持资金情况 | AB4: 请说明获得市级荣誉称号、获奖证书及扶持资金情况 | AC4: 是/否、数量 | AD4: 是/否、数量 | AE4: 产品获得国家“单项冠军产品”称号 | AF4: 企业主导或参与国际、“一带一路”区域、国家级、行业、省级等行业标准制定的 | AG4: 营业收入1亿元以上 | AH4: 增长（下降）速度 | AI4: 企业获得国家级、省级、市级专精特新“小巨人”企业等称号的 | AJ4: 企业获得国家级、省级、市级“独角兽”企业、“蹬羚”企业等称号的 | AK4: 企业获得国家级、省级、市级企业技术中心、工程技术中心 | AL4: 企业主导投资的在蓉工业项目总投资达到500万元、1亿元、5亿元、10亿元、30亿元、50亿元的 | AM4: 企业研究与试验发展（R&D）投入在1000万元以上，或投入强度在3%以上的 | AN4: 企业获得国家级、省级、市级高新技术企业认定的 | AO4: 企业品牌为国家级、省级、市级知名品牌的（含地理标志保护）（请举例说明，举例时注明国家级、省级、市级） | AP4: 企业产品进入国家级、省级、市级推广目录的（建议改为企业产品进入本地区名优产品目录的） | AQ4: 企业产品进入重大技术装备首台（套）、新材料首批次、软件首版次推广应用的 | AR4: 发明专利 | AS4: 实用新型专利 | AT4: PCT国际专利 | AU4: 企业绿色生产供应链取得成效，作为国家级、省级、市级（绿色工厂）经验推广的 | AV4: 企业实施减排技术升级改造的 | AW4: 企业在环保检查、环保抽查中被发现问题并受到处理的 | AX4: 使用智能制造装备进行生产经营活动 | AY4: 使用环保节能环保进行生产经营活动 | AZ4: 企业为能耗重点监测企业，圆满完成能耗目标任务的 | BA4: 企业是否为能耗重点监测企业 | BB4: 企业在安全检查、安全抽查中被发现风险隐患并受到处理的 | BC4: 企业发生安全事故的（发生亡人事故直接降档） | BD4: 拥有质量管理体系、环境管理体系和职业健康与安全管理体系（请以文字描述，描述时请说明拥有的体系数量） | BE4: 企业被确定为产业链链主企业、省级重点企业、市级30户龙头企业的（含5户省返企业） | BF4: 企业被确定为市级100户重点企业、区（市）县重点企业的 | BG4: 企业或主要产品进入世界500强、中国500强企业生产（产品）供应商体系的 | BH4: 企业符合本地区重点发展产业的 | BI4: 企业为省、市重点企业（含成渝双城圈和成都都市圈内企业）的重要配套企业的（请举例配套企业名称） | BJ4: 企业为本地区重点企业的重要配套企业的 | BK4: 营业收入（2020) | BL4: 利润总额(2020) | BM4: 纳税总额(2020）
A5: 1 | B5: 成都市长峰钢铁集团有限公司 | C5: 9151010074360952XH | D5: 其他制造业 | E5: 3130 | F5: 成都市都江堰经济开发区上阳街214号 | G5: 都江堰市经济开发区 | H5: 322976 | I5: 9828 | J5: 400071 | K5: -6224 | L5: 382843 | M5: 4543 | N5: 735.14 | O5: 38001 | P5: 0 | Q5: 997 | R5: 11141.75 | S5: 0 | T5: 175192 | U5: 67072 | V5: 是 | W5: =M5/L5*100 -> 1.187 | X5: 否 | Y5: 是 | Z5: 否 | AA5: 否 | AB5: 否 | AC5: 否 | AD5: 否 | AE5: 否 | AF5: 否 | AG5: =IF(L5>10000,"是","否") -> 是 | AH5: =(L5/J5+J5/H5)*0.5-1 -> 9.78% | AI5: 否 | AJ5: 否 | AK5: 否 | AL5: 否 | AM5: 否 | AN5: 否 | AO5: 是 | AP5: 是 | AQ5: 否 | AR5: 否 | AS5: 否 | AT5: 否 | AU5: 省级 | AV5: 是 | AW5: 否 | AX5: 是 | AY5: 是 | AZ5: 是 | BA5: 无 | BB5: 无 | BC5: 无 | BD5: 5 | BE5: 是 | BF5: 是 | BG5: 否 | BH5: 是 | BI5: 否 | BJ5: 否 | BK5: 382843 | BL5: 4543 | BM5: 38001
A6: 2 | B6: 四川侨源气体股份有限公司 | C6: 91510100740341476L | D6: 其他制造业 | E6: C2619 | F6: 四川省成都市都江堰市灌温路1399号 | G6: 四川省成都市都江堰市奎光社区街道 | H6: =ROUND(170002917.67/10000,2) -> 17000.29 | I6: =ROUND(130019768.27/10000,2) -> 13001.98 | J6: =ROUND(155195856.79/10000,2) -> 15519.59 | K6: =ROUND(254893127.86/10000,2) -> 25489.31 | L6: =ROUND(152451481.31/10000,2) -> 15245.15 | M6: =ROUND(369893921.32/10000,2) -> 36989.39 | N6: =ROUND(72038.3/666.66,2) -> 108.06 | O6: =ROUND(128551614.36/10000,2) -> 12855.16 | P6: 0 | Q6: 197 | R6: 2449.08 | S6: 0 | T6: =ROUND(552028451.2/10000,2) -> 55202.85 | U6: =ROUND(93697285.63/10000,2) -> 9369.73 | V6: 是 | W6: 242.631 | X6: 否 | Y6: 是 | Z6: 否 | AA6: 否 | AB6: 否 | AC6: 否 | AD6: 否 | AE6: 否 | AF6: 否 | AG6: 是 | AH6: -5.24% | AI6: 否 | AJ6: 否 | AK6: 否 | AL6: 否 | AM6: 否 | AN6: 否 | AO6: 否 | AP6: 否 | AQ6: 否 | AR6: 否 | AS6: 是 | AT6: 否 | AU6: 否 | AV6: 否 | AW6: 否 | AX6: 否 | AY6: 否 | AZ6: 否 | BA6: 无 | BB6: 无 | BC6: 无 | BD6: 3 | BE6: 否 | BF6: 否 | BG6: 否 | BH6: 否 | BI6: 否 | BJ6: 否 | BK6: =ROUND(152451481.31/10000,2) -> 15245.15 | BL6: 36989.39 | BM6: 12855.16
A7: 3 | B7: 成都利尔药业有限公司 | C7: 91510100201985002T | D7: 医药制造业 | E7: 271 | F7: 四川省成都市都江堰市四川都江堰经济开发区堰华路631号 | G7: 四都江堰经济开发区 | H7: 12093.07 | I7: 2548.9 | J7: 17197.03 | K7: 3697.02 | L7: 16807.06 | M7: 4158.01 | N7: 72 | O7: 1997.11 | P7: 961.4 | Q7: 193 | R7: 1041 | S7: 0.161693 | T7: 50248.63 | U7: 16822.84 | V7: 是 | W7: 24.740 | X7: 否 | Y7: 是 | Z7: 否 | AA7: 否 | AB7: 是 | AC7: 是 | AD7: 否 | AE7: 否 | AF7: 否 | AG7: 是 | AH7: 19.97% | AI7: 否 | AJ7: 否 | AK7: 是 | AL7: 否 | AM7: 是 | AN7: 是 | AO7: 否 | AP7: 是 | AQ7: 否 | AR7: 是 | AS7: 是 | AT7: 否 | AU7: 否 | AV7: 是 | AW7: 否 | AX7: 是 | AY7: 否 | AZ7: 否 | BA7: 无 | BB7: 无 | BC7: 无 | BD7: 2 | BE7: 否 | BF7: 是 | BG7: 是 | BH7: 是 | BI7: 否 | BJ7: 否 | BK7: 16807.06 | BL7: 4158.01 | BM7: 1997.11
A8: 4 | B8: 扬子江药业集团四川海蓉药业有限公司 | C8: 91510181730231740X | D8: 医药制造业 | E8: 2720 | F8: 四川省成都市都江堰市彩虹大道南段802号 | G8: 奎光街道 | H8: 98197.3 | I8: 23396.4 | J8: 98230.8 | K8: 22616.3 | L8: 75693.6 | M8: 19483.9 | N8: 182.94 | O8: 11695 | P8: 6313 | Q8: 321 | R8: 2799.34 | S8: 0 | T8: 198003.8 | U8: 21494.1 | V8: 是 | W8: 25.740 | X8: 否 | Y8: 无 | Z8: 否 | AA8: 是 | AB8: 是 | AC8: 否 | AD8: 否 | AE8: 否 | AF8: 否 | AG8: 是 | AH8: -11.45% | AI8: 是 | AJ8: 否 | AK8: 是 | AL8: 否 | AM8: 是 | AN8: 是 | AO8: 是 | AP8: 否 | AQ8: 否 | AR8: 是 | AS8: 是 | AT8: 否 | AU8: 国家级 | AV8: 否 | AW8: 否 | AX8: 否 | AY8: 否 | AZ8: 否 | BA8: 无 | BB8: 无 | BC8: 无 | BD8: 无 | BE8: 否 | BF8: 否 | BG8: 否 | BH8: 否 | BI8: 否 | BJ8: 否 | BK8: 75693.6 | BL8: 19483.9 | BM8: 11695
A9: 5 | B9: 四川亚大塑料制品有限公司 | C9: 91510100743642311T | D9: 其他制造业 | E9: 2922 | F9: 都江堰市天府大道358号 | G9: 奎光塔街道 | H9: 17029 | I9: 3083 | J9: 27567 | K9: 3745 | L9: 30454 | M9: 4187 | N9: 34.5 | O9: 4808 | P9: 0 | Q9: 72 | R9: 942.64 | S9: 0 | T9: 22739 | U9: 4147 | V9: 是 | W9: 13.749 | X9: 否 | Y9: 无 | Z9: 否 | AA9: 是 | AB9: 否 | AC9: 否 | AD9: 否 | AE9: 否 | AF9: 否 | AG9: 是 | AH9: 36.18% | AI9: 是 | AJ9: 否 | AK9: 是 | AL9: 否 | AM9: 否 | AN9: 否 | AO9: 是 | AP9: 是 | AQ9: 否 | AR9: 是 | AS9: 是 | AT9: 否 | AU9: 否 | AV9: 否 | AW9: 否 | AX9: 否 | AY9: 否 | AZ9: 否 | BA9: 无 | BB9: 无 | BC9: 无 | BD9: 3 | BE9: 否 | BF9: 否 | BG9: 是 | BH9: 是 | BI9: 否 | BJ9: 是 | BK9: 30454 | BL9: 4187 | BM9: 4808
A10: 6 | B10: 四川华都核设备制造有限公司 | C10: 91510181674303286P | D10: 通用设备制造业 | E10: 3411 | F10: 都江堰市经济开发区龙翔路5号 | G10: 都江堰经济开发区 | H10: 15505.22 | I10: 7389.59 | J10: 15762.91 | K10: 6747.6 | L10: 16069.18 | M10: 5517.65 | N10: 141 | O10: 3852.77 | P10: 1258.76 | Q10: 192 | R10: 167.28 | S10: 0 | T10: 72927.38 | U10: 21997.9 | V10: 是 | W10: 34.337 | X10: 否 | Y10: 是 | Z10: 是 | AA10: 是 | AB10: 否 | AC10: 是 | AD10: 否 | AE10: 否 | AF10: 否 | AG10: 是 | AH10: 1.80% | AI10: 是 | AJ10: 否 | AK10: 是 | AL10: 否 | AM10: 是 | AN10: 是 | AO10: 是 | AP10: 是 | AQ10: 是 | AR10: 是 | AS10: 是 | AT10: 否 | AU10: 否 | AV10: 否 | AW10: 否 | AX10: 否 | AY10: 否 | AZ10: 否 | BA10: 无 | BB10: 无 | BC10: 无 | BD10: 5 | BE10: 否 | BF10: 否 | BG10: 否 | BH10: 是 | BI10: 否 | BJ10: 否 | BK10: 16069.18 | BL10: 5517.65 | BM10: 3852.77
A11: 7 | B11: 四川普什宁江机床有限公司 | C11: 915101817949028069 | D11: 通用设备制造业 | E11: 3421 | F11: 都江堰市永安道到南一段179号 | G11: 奎光塔街道办 | H11: 30298.6 | I11: 455.5 | J11: 43136.8 | K11: 1199.3 | L11: 25736 | M11: 967.6 | N11: 464.98 | O11: 1577.01 | P11: 1609.7 | Q11: 761 | R11: =10.42+985.15 -> 995.57 | S11: 0 | T11: 78139 | U11: 29133.9 | V11: 是 | W11: 3.760 | X11: 否 | Y11: 是 | Z11: 是 | AA11: 是 | AB11: 是 | AC11: 否 | AD11: 否 | AE11: 否 | AF11: 省级 | AG11: 是 | AH11: 1.02% | AI11: 是 | AJ11: 否 | AK11: 是 | AL11: 否 | AM11: 是 | AN11: 是 | AO11: 是 | AP11: 是 | AQ11: 是 | AR11: 是 | AS11: 是 | AT11: 否 | AU11: 否 | AV11: 是 | AW11: 否 | AX11: 是 | AY11: 是 | AZ11: 否 | BA11: 无 | BB11: 无 | BC11: 无 | BD11: 3 | BE11: 否 | BF11: 否 | BG11: 是 | BH11: 是 | BI11: 是 | BJ11: 是 | BK11: 25736 | BL11: 967.6 | BM11: 1577.01
A12: 8 | B12: 成都考斯特车桥制造有限责任公司 | C12: 915101816936985868 | D12: 汽车制造业 | E12: 3670 | F12: 四川省成都市都江堰市四川都江堰经济开发区泰兴大道11号 | G12: 都江堰市经济开发区 | H12: 4486 | I12: 314 | J12: 10017 | K12: -927 | L12: 25041 | M12: 337 | N12: 147 | O12: 506 | P12: 762 | Q12: 334 | R12: 323 | S12: 0.35 | T12: 17765 | U12: 15912 | V12: 是 | W12: 1.346 | X12: 否 | Y12: 是 | Z12: 是 | AA12: 否 | AB12: 是 | AC12: 否 | AD12: 否 | AE12: 否 | AF12: 否 | AG12: 是 | AH12: 136.64% | AI12: 否 | AJ12: 否 | AK12: 否 | AL12: 否 | AM12: 是 | AN12: 是 | AO12: 否 | AP12: 否 | AQ12: 否 | AR12: 是 | AS12: 是 | AT12: 否 | AU12: 否 | AV12: 否 | AW12: 否 | AX12: 是 | AY12: 是 | AZ12: 否 | BA12: 无 | BB12: 无 | BC12: 无 | BD12: 1 | BE12: 否 | BF12: 否 | BG12: 是 | BH12: 否 | BI12: 是 | BJ12: 否 | BK12: 25041 | BL12: 337 | BM12: 506
A13: 9 | B13: 四川久源机械制造有限公司 | C13: 9151018155644060X6 | D13: 金属制品业 | E13: 333 | F13: 都江堰奎光塔街道灌温路1669号 | G13: 奎光塔街道 | H13: 13428 | I13: 1175 | J13: 16109 | K13: 2532 | L13: 13811 | M13: -1734 | N13: 195 | O13: 988 | P13: 588 | Q13: 185 | R13: 188.87 | S13: 0 | T13: 49065 | U13: 46627 | V13: 否 | W13: -12.555 | X13: 否 | Y13: 是 | Z13: 否 | AA13: 否 | AB13: 否 | AC13: 是 | AD13: 否 | AE13: 否 | AF13: 否 | AG13: 是 | AH13: 2.85% | AI13: 否 | AJ13: 否 | AK13: 是 | AL13: 否 | AM13: 否 | AN13: 否 | AO13: 否 | AP13: 否 | AQ13: 否 | AR13: 否 | AS13: 否 | AT13: 否 | AU13: 否 | AV13: 是 | AW13: 否 | AX13: 是 | AY13: 是 | AZ13: 否 | BA13: 无 | BB13: 无 | BC13: 无 | BD13: 3 | BE13: 否 | BF13: 否 | BG13: 是 | BH13: 是 | BI13: 是 | BJ13: 是 | BK13: 13811 | BL13: -1734 | BM13: 988
A14: 10 | B14: 成都华科阀门制造有限公司 | C14: 91510181720356013G | D14: 通用设备制造业 | E14: 3443 | F14: 四川省成都市都江堰市科技产业区灌温路68号 | G14: 奎光街道办 | H14: 6782 | I14: 618 | J14: 7102 | K14: 1103 | L14: 10061 | M14: 1688 | N14: 50 | O14: 872 | P14: 323 | Q14: 83 | R14: 103.46 | S14: 0 | T14: 16330 | U14: 5241 | V14: 是 | W14: 16.778 | X14: 否 | Y14: 无 | Z14: 否 | AA14: 否 | AB14: 否 | AC14: 否 | AD14: 否 | AE14: 否 | AF14: 否 | AG14: 是 | AH14: 23.19% | AI14: 否 | AJ14: 否 | AK14: 是 | AL14: 否 | AM14: 是 | AN14: 是 | AO14: 是 | AP14: 是 | AQ14: 否 | AR14: 是 | AS14: 是 | AT14: 否 | AU14: 否 | AV14: 否 | AW14: 否 | AX14: 是 | AY14: 否 | AZ14: 否 | BA14: 无 | BB14: 无 | BC14: 无 | BD14: 1 | BE14: 否 | BF14: 是 | BG14: 是 | BH14: 是 | BI14: 否 | BJ14: 否 | BK14: 10061 | BL14: 1688 | BM14: 872
A15: 11 | B15: 成都恒诚商品混凝土有限公司 | C15: 91510181681817576Q | D15: 其他制造业 | E15: 3129 | F15: 都江堰市经济开发区金江村一组 | G15: 奎光塔街道 | H15: 9160 | I15: 507 | J15: 18295 | K15: 1246 | L15: 15973 | M15: 930 | N15: 31.5 | O15: 823 | P15: 0 | Q15: 70 | R15: 77.22 | S15: 0 | T15: 122991 | U15: 8135 | V15: 是 | W15: 5.822 | X15: 否 | Y15: 无 | Z15: 否 | AA15: 否 | AB15: 是 | AC15: 是 | AD15: 否 | AE15: 否 | AF15: 否 | AG15: 是 | AH15: 43.52% | AI15: 否 | AJ15: 否 | AK15: 否 | AL15: 10000 | AM15: 否 | AN15: 否 | AO15: 是 | AP15: 否 | AQ15: 否 | AR15: 否 | AS15: 否 | AT15: 否 | AU15: 否 | AV15: 否 | AW15: 否 | AX15: 是 | AY15: 是 | AZ15: 否 | BA15: 无 | BB15: 无 | BC15: 无 | BD15: 无 | BE15: 是 | BF15: 否 | BG15: 否 | BH15: 否 | BI15: 否 | BJ15: 否 | BK15: 15973 | BL15: 930 | BM15: 823
A16: 12 | B16: 都江堰市航都商品混凝土工程有限公司 | C16: 915101816845596212 | D16: 其他制造业 | E16: 3021 | F16: 聚源镇泉水村 | G16: 十组40号 | H16: 10564.16 | I16: 24.26 | J16: 18667.58 | K16: 151 | L16: 19740.6 | M16: 266.21 | N16: 54.5 | O16: 808 | P16: 0 | Q16: 40 | R16: 131.5 | S16: 0 | T16: 25904.04 | U16: 24020.06 | V16: 是 | W16: 1.349 | X16: 否 | Y16: 是 | Z16: 否 | AA16: 否 | AB16: 否 | AC16: 否 | AD16: 否 | AE16: 是 | AF16: 否 | AG16: 是 | AH16: 41.23% | AI16: 否 | AJ16: 否 | AK16: 否 | AL16: 否 | AM16: 否 | AN16: 否 | AO16: 否 | AP16: 否 | AQ16: 否 | AR16: 否 | AS16: 否 | AT16: 否 | AU16: 否 | AV16: 否 | AW16: 否 | AX16: 否 | AY16: 否 | AZ16: 否 | BA16: 无 | BB16: 无 | BC16: 无 | BD16: 无 | BE16: 否 | BF16: 是 | BG16: 否 | BH16: 否 | BI16: 否 | BJ16: 否 | BK16: 19740.6 | BL16: 266.21 | BM16: 808
A17: 13 | B17: 四川恒瑞通达生物科技有限公司 | C17: 915101815849505860 | D17: 医药制造业 | E17: 27510 | F17: 都江堰市金藤大道2号 | G17: 都江堰市经济开发区 | H17: 7653.32 | I17: 34.65 | J17: 10583.38 | K17: 161.66 | L17: 14731.53 | M17: 316.75 | N17: 35 | O17: 797.63 | P17: 0 | Q17: 114 | R17: 2128 | S17: 0 | T17: 5187.33 | U17: 3942.51 | V17: 是 | W17: 2.150 | X17: 否 | Y17: 是 | Z17: 否 | AA17: 否 | AB17: 否 | AC17: 是 | AD17: 否 | AE17: 否 | AF17: 否 | AG17: 是 | AH17: 38.74% | AI17: 是 | AJ17: 否 | AK17: 否 | AL17: 否 | AM17: 否 | AN17: 否 | AO17: 否 | AP17: 否 | AQ17: 否 | AR17: 否 | AS17: 否 | AT17: 否 | AU17: 否 | AV17: 是 | AW17: 否 | AX17: 是 | AY17: 是 | AZ17: 是 | BA17: 无 | BB17: 无 | BC17: 无 | BD17: 2 | BE17: 否 | BF17: 否 | BG17: 否 | BH17: 是 | BI17: 否 | BJ17: 否 | BK17: 14731.53 | BL17: 316.75 | BM17: 797.63
A18: 14 | B18: 都江堰光明光电材料有限责任公司 | C18: 915101817253529198 | D18: 其他制造业 | E18: 301 | F18: 都江堰市经济开发区光泰路10号 | G18: 四川省成都市都江堰市四川都江堰经济开发区 | H18: 12263 | I18: 8 | J18: 13343 | K18: -984 | L18: 13620 | M18: 461 | N18: 71.5 | O18: 703 | P18: 16 | Q18: 347 | R18: 6872 | S18: 0 | T18: 15389 | U18: 14191 | V18: 否 | W18: 3.385 | X18: 否 | Y18: 是 | Z18: 否 | AA18: 否 | AB18: 是 | AC18: 是 | AD18: 否 | AE18: 否 | AF18: 否 | AG18: 是 | AH18: 5.44% | AI18: 否 | AJ18: 否 | AK18: 否 | AL18: 否 | AM18: 否 | AN18: 否 | AO18: 否 | AP18: 否 | AQ18: 否 | AR18: 否 | AS18: 是 | AT18: 否 | AU18: 否 | AV18: 是 | AW18: 否 | AX18: 是 | AY18: 是 | AZ18: 否 | BA18: 是 | BB18: 无 | BC18: 无 | BD18: 3 | BE18: 否 | BF18: 否 | BG18: 是 | BH18: 否 | BI18: 否 | BJ18: 否 | BK18: 13620 | BL18: 461 | BM18: 703
A19: 15 | B19: 中国电建集团都江电力设备有限公司 | C19: 91510181202761342Y | D19: 专用设备制造业 | E19: 351 | F19: 四川都江堰市蒲阳镇泰兴大道3号 | G19: 四川都江堰市蒲阳街道 | H19: =238379278.15/10000 -> 23837.92781 | I19: =-13536894.48/10000 -> -1353.689448 | J19: =243193938.74/10000 -> 24319.39387 | K19: =81451.73/10000 -> 8.145173 | L19: =201150070.48/10000 -> 20115.00705 | M19: =-7534356.15/10000 -> -753.435615 | N19: 126 | O19: 689.5 | P19: =8567492.48/10000 -> 856.749248 | Q19: 303 | R19: 649.87 | S19: 0 | T19: =409347057.36/10000 -> 40934.70574 | U19: =258531773.13/10000 -> 25853.17731 | V19: 否 | W19: -3.746 | X19: 否 | Y19: 无 | Z19: 是 | AA19: 是 | AB19: 否 | AC19: 否 | AD19: 是 | AE19: 否 | AF19: 否 | AG19: 是 | AH19: -7.63% | AI19: 否 | AJ19: 否 | AK19: 否 | AL19: 否 | AM19: 是 | AN19: 是 | AO19: 是 | AP19: 否 | AQ19: 否 | AR19: 是 | AS19: 是 | AT19: 否 | AU19: 否 | AV19: 是 | AW19: 否 | AX19: 否 | AY19: 是 | AZ19: 否 | BA19: 无 | BB19: 无 | BC19: 无 | BD19: 3 | BE19: 否 | BF19: 否 | BG19: 否 | BH19: 是 | BI19: 否 | BJ19: 否 | BK19: =201150070.48/10000 -> 20115.00705 | BL19: -753.435615 | BM19: 689.5
A20: 16 | B20: 四川天府防火材料有限公司 | C20: 91510181762292724G | D20: 其他制造业 | E20: 2641 | F20: 四川省成都市都江堰市四川都江堰经济开发区拉法基大道16号 | H20: 13465.6 | I20: 795.13 | J20: 14016.68 | K20: 979.6 | L20: 13406.9 | M20: 942.6 | N20: 56 | O20: 668 | P20: 620.4 | Q20: 134 | R20: 18 | S20: 0 | T20: 16904.72 | U20: 10805.2 | V20: 是 | W20: 7.031 | X20: 否 | Y20: 是 | Z20: 是 | AA20: 是 | AB20: 是 | AC20: 否 | AD20: 否 | AE20: 否 | AF20: 否 | AG20: 是 | AH20: -0.13% | AI20: 否 | AJ20: 否 | AK20: 是 | AL20: 否 | AM20: 是 | AN20: 是 | AO20: 是 | AP20: 否 | AQ20: 否 | AR20: 是 | AS20: 是 | AT20: 否 | AU20: 否 | AV20: 否 | AW20: 否 | AX20: 否 | AY20: 否 | AZ20: 否 | BA20: 无 | BB20: 无 | BC20: 无 | BD20: 3 | BE20: 否 | BF20: 否 | BG20: 否 | BH20: 否 | BI20: 否 | BJ20: 否 | BK20: 13406.9 | BL20: 942.6 | BM20: 668
A21: 17 | B21: 中鹄科技有限公司 | C21: 91510181679665315N | D21: 通用设备制造业 | E21: 3459 | F21: 四川省成都市都江堰市四川都江堰经济开发区蒲阳大道1358号 | G21: 四川都江堰经济开发区（青城山旅游装备产业功能区） | H21: =62326926.01/10000 -> 6232.692601 | I21: 73.26 | J21: 7375.65 | K21: 268.77 | L21: 5432.74 | M21: 409.29 | N21: 8 | O21: 613 | P21: 280.34 | Q21: 116 | R21: 203.33 | S21: 0 | T21: 7796.79 | U21: 6598.89 | V21: 是 | W21: 7.534 | X21: 否 | Y21: 是 | Z21: 否 | AA21: 否 | AB21: 是 | AC21: 是 | AD21: 否 | AE21: 否 | AF21: 否 | AG21: 否 | AH21: -4.00% | AI21: 是 | AJ21: 否 | AK21: 否 | AL21: 否 | AM21: 否 | AN21: 是 | AO21: 否 | AP21: 否 | AQ21: 否 | AR21: 否 | AS21: 是 | AT21: 否 | AU21: 否 | AV21: 否 | AW21: 否 | AX21: 是 | AY21: 否 | AZ21: 否 | BA21: 无 | BB21: 无 | BC21: 无 | BD21: 4 | BE21: 否 | BF21: 否 | BG21: 否 | BH21: 是 | BI21: 否 | BJ21: 否 | BK21: 5432.74 | BL21: 409.29 | BM21: 613
A22: 18 | B22: 成都晨航磁业有限公司 | C22: 91510181331931432W | D22: 其他制造业 | E22: 3985 | F22: 四川省成都市都江堰市四川都江堰经济开发区泰兴大道17号 | G22: 青城山旅游装备产业功能区 | H22: 3551 | I22: 92 | J22: 3672 | K22: 193 | L22: 4070 | M22: 155 | N22: 33 | O22: 123 | P22: 404.84 | Q22: 116 | R22: 540 | S22: 0.213 | T22: 4086 | U22: 2786 | V22: 是 | W22: 3.808 | X22: 否 | Y22: 无 | Z22: 否 | AA22: 否 | AB22: 是 | AC22: 是 | AD22: 否 | AE22: 否 | AF22: 否 | AG22: 否 | AH22: 7.12% | AI22: 否 | AJ22: 否 | AK22: 否 | AL22: 否 | AM22: 是 | AN22: 是 | AO22: 否 | AP22: 否 | AQ22: 是 | AR22: 否 | AS22: 是 | AT22: 否 | AU22: 否 | AV22: 否 | AW22: 否 | AX22: 是 | AY22: 是 | AZ22: 否 | BA22: 无 | BB22: 无 | BC22: 无 | BD22: 3 | BE22: 否 | BF22: 否 | BG22: 否 | BH22: 否 | BI22: 否 | BJ22: 否 | BK22: 4070 | BL22: 155 | BM22: 123
A23: 19 | B23: 四川恒创特种纤维有限公司 | C23: 915101007436214811 | D23: 纺织业 | E23: 1761 | F23: 四川省成都市都江堰经济开发区上阳街498号 | G23: 都江堰经济开发区 | H23: 10912.1 | I23: -934.53 | J23: 11427.05 | K23: -817.06 | L23: 15206.58 | M23: 180.8 | N23: 135 | O23: 511.1 | P23: 587.42 | Q23: 323 | R23: 4301 | S23: 0 | T23: 16226.54 | U23: 9971.89 | V23: 是 | W23: 1.189 | X23: 否 | Y23: 无 | Z23: 否 | AA23: 否 | AB23: 是 | AC23: 否 | AD23: 否 | AE23: 否 | AF23: 否 | AG23: 是 | AH23: 18.90% | AI23: 是 | AJ23: 否 | AK23: 是 | AL23: 否 | AM23: 否 | AN23: 是 | AO23: 否 | AP23: 否 | AQ23: 否 | AR23: 是 | AS23: 是 | AT23: 否 | AU23: 否 | AV23: 否 | AW23: 否 | AX23: 是 | AY23: 是 | AZ23: 否 | BA23: 无 | BB23: 无 | BC23: 无 | BD23: 3 | BE23: 否 | BF23: 否 | BG23: 否 | BH23: 否 | BI23: 否 | BJ23: 否 | BK23: 15206.58 | BL23: 180.8 | BM23: 511.1
A24: 20 | B24: 四川都工机械有限公司 | C24: 91510181788132526K | D24: 专用设备制造业 | E24: 3511 | F24: 都江堰市经济开发区凤鸣路7号 | G24: 都江堰市经济开发区凤鸣路7号 | H24: 8148.2 | I24: 34.6 | J24: 13325.2 | K24: 256.5 | L24: 12616.2 | M24: -41.8 | N24: 23.52 | O24: 484.1 | P24: 0 | Q24: 120 | R24: 154 | S24: 0 | T24: 6262.6 | U24: 4547.5 | V24: 否 | W24: -0.331 | X24: 否 | Y24: 是 | Z24: 否 | AA24: 否 | AB24: 否 | AC24: 是 | AD24: 否 | AE24: 否 | AF24: 否 | AG24: 是 | AH24: 29.11% | AI24: 否 | AJ24: 否 | AK24: 否 | AL24: 否 | AM24: 否 | AN24: 否 | AO24: 否 | AP24: 否 | AQ24: 否 | AR24: 否 | AS24: 否 | AT24: 否 | AU24: 否 | AV24: 否 | AW24: 否 | AX24: 是 | AY24: 是 | AZ24: 否 | BA24: 无 | BB24: 无 | BC24: 无 | BD24: 1 | BE24: 否 | BF24: 否 | BG24: 是 | BH24: 否 | BI24: 否 | BJ24: 否 | BK24: 12616.2 | BL24: -41.8 | BM24: 484.1
A25: 21 | B25: 四川齐力绿源水处理科技有限公司 | C25: 915101813429838448 | D25: 专用设备制造业 | E25: 3591 | F25: 都江堰市经济开发区堰华路609号 | G25: 四川省成都市都江堰市蒲阳街道 | H25: 4487.1 | I25: 397 | J25: 6405.6 | K25: 428 | L25: 7528.3 | M25: 553.8 | N25: 66 | O25: 425.71 | P25: 546.79 | Q25: 90 | R25: 7.37 | S25: 0 | T25: 4898.1 | U25: 2592.3 | V25: 是 | W25: 7.356 | X25: 否 | Y25: 是 | Z25: 是 | AA25: 是 | AB25: 是 | AC25: 是 | AD25: 否 | AE25: 否 | AF25: 否 | AG25: 否 | AH25: 30.14% | AI25: 是 | AJ25: 是 | AK25: 是 | AL25: 否 | AM25: 否 | AN25: 是 | AO25: 否 | AP25: 否 | AQ25: 否 | AR25: 是 | AS25: 是 | AT25: 否 | AU25: 否 | AV25: 否 | AW25: 否 | AX25: 是 | AY25: 是 | AZ25: 否 | BA25: 无 | BB25: 无 | BC25: 无 | BD25: 2 | BE25: 否 | BF25: 是 | BG25: 否 | BH25: 是 | BI25: 是 | BJ25: 是 | BK25: 7528.3 | BL25: 553.8 | BM25: 425.71
A26: 22 | B26: 成都锐起环保科技有限公司 | C26: 915101817587905951 | D26: 其他制造业 | E26: 281 | F26: 四川省成都市都江堰经济开发区同心路1号 | G26: 青城山旅游装备产能工业区 | H26: 3275 | I26: 347 | J26: 3576 | K26: 494 | L26: 3517 | M26: -53 | N26: 37 | O26: 410 | P26: 176 | Q26: 84 | R26: 119 | S26: 0 | T26: 3132 | U26: 966 | V26: 否 | W26: -1.507 | X26: 否 | Y26: 是 | Z26: 否 | AA26: 否 | AB26: 是 | AC26: 是 | AD26: 否 | AE26: 否 | AF26: 否 | AG26: 否 | AH26: 3.77% | AI26: 否 | AJ26: 否 | AK26: 否 | AL26: 否 | AM26: 否 | AN26: 是 | AO26: 否 | AP26: 否 | AQ26: 否 | AR26: 否 | AS26: 是 | AT26: 否 | AU26: 否 | AV26: 是 | AW26: 否 | AX26: 是 | AY26: 是 | AZ26: 是 | BA26: 无 | BB26: 无 | BC26: 无 | BD26: 无 | BE26: 否 | BF26: 否 | BG26: 否 | BH26: 是 | BI26: 否 | BJ26: 否 | BK26: 3517 | BL26: -53 | BM26: 410
A27: 23 | B27: 都江堰瑞泰科技有限公司 | C27: 9151018179782310XF | D27: 其他制造业 | E27: 3099 | F27: 都江堰市蒲阳镇太阳岛路4号 | G27: 四川都江堰经济开发区 | H27: 11076.08 | I27: 184.88 | J27: 7433.07 | K27: -870.98 | L27: 9981.43 | M27: -432.99 | N27: 103.24 | O27: 401.93 | P27: 661.7 | Q27: 182 | R27: 3017.2 | S27: 0 | T27: 21236.85 | U27: 15453.17 | V27: 否 | W27: -4.338 | X27: 否 | Y27: 是 | Z27: 否 | AA27: 否 | AB27: 是 | AC27: 是 | AD27: 是 | AE27: 否 | AF27: 否 | AG27: 否 | AH27: 0.70% | AI27: 否 | AJ27: 否 | AK27: 否 | AL27: 否 | AM27: 是 | AN27: 是 | AO27: 否 | AP27: 否 | AQ27: 否 | AR27: 是 | AS27: 是 | AT27: 否 | AU27: 否 | AV27: 否 | AW27: 是 | AX27: 否 | AY27: 否 | AZ27: 否 | BA27: 无 | BB27: 无 | BC27: 无 | BD27: 3 | BE27: 否 | BF27: 否 | BG27: 否 | BH27: 否 | BI27: 否 | BJ27: 否 | BK27: 9981.43 | BL27: -432.99 | BM27: 401.93
A28: 24 | B28: 四川都江铸造有限责任公司 | C28: 91510181202756906M | D28: 金属制品业 | E28: 3391 | F28: 都江堰市崇义镇新马路下街8号 | G28: 聚源镇 | H28: 8057 | I28: -54.4 | J28: 6732 | K28: 287.9 | L28: 6196 | M28: 410.7 | N28: 34.5 | O28: 340 | P28: 0 | Q28: 223 | R28: 2290.86 | S28: 0 | T28: 7114.7 | U28: 3116 | V28: 否 | W28: 6.628 | X28: 否 | Y28: 无 | Z28: 否 | AA28: 否 | AB28: 否 | AC28: 是 | AD28: 否 | AE28: 否 | AF28: 否 | AG28: 否 | AH28: -12.20% | AI28: 否 | AJ28: 否 | AK28: 否 | AL28: 否 | AM28: 否 | AN28: 否 | AO28: 否 | AP28: 否 | AQ28: 否 | AR28: 否 | AS28: 是 | AT28: 否 | AU28: 否 | AV28: 否 | AW28: 否 | AX28: 否 | AY28: 否 | AZ28: 否 | BA28: 无 | BB28: 无 | BC28: 无 | BD28: 无 | BE28: 否 | BF28: 否 | BG28: 否 | BH28: 否 | BI28: 否 | BJ28: 否 | BK28: 6196 | BL28: 410.7 | BM28: 340
A29: 25 | B29: 都江堰市鑫奥岩土锚固材料有限公司 | C29: 91510181771229866Q | D29: 其他制造业 | E29: 3514 | F29: 都江堰市金藤大道13号 | G29: 蒲阳工业园区 | H29: 3607.1 | I29: 99.2 | J29: 3763.3 | K29: 123.8 | L29: 3381.6 | M29: 152.4 | N29: 26 | O29: 110.4 | P29: 0 | Q29: 52 | R29: 106.28 | S29: 0.33 | T29: 2646.4 | U29: 1283 | V29: 是 | W29: 4.507 | X29: 否 | Y29: 是 | Z29: 否 | AA29: 否 | AB29: 是 | AC29: 是 | AD29: 否 | AE29: 否 | AF29: 否 | AG29: 否 | AH29: -2.91% | AI29: 否 | AJ29: 否 | AK29: 否 | AL29: 否 | AM29: 否 | AN29: 否 | AO29: 否 | AP29: 否 | AQ29: 否 | AR29: 否 | AS29: 否 | AT29: 否 | AU29: 否 | AV29: 否 | AW29: 否 | AX29: 否 | AY29: 是 | AZ29: 否 | BA29: 无 | BB29: 无 | BC29: 无 | BD29: 1 | BE29: 否 | BF29: 否 | BG29: 否 | BH29: 否 | BI29: 否 | BJ29: 否 | BK29: 3381.6 | BL29: 152.4 | BM29: 110.4
A30: 26 | B30: 四川渝拓橡塑工程有限公司 | C30: 91510181746413418X | D30: 其他制造业 | E30: 301 | F30: 四川省成都市都江堰市四川都江堰经济开发区泰兴大道26号 | G30: 都江堰经济开发区 | H30: 2215.56 | I30: 210.09 | J30: 2932.55 | K30: 353.93 | L30: 3455.34 | M30: 380.01 | N30: 20000 | O30: 323.41 | P30: 0 | Q30: 135 | R30: 93.02 | S30: 0 | T30: 4179.93 | U30: 2722.57 | V30: 是 | W30: 10.998 | X30: 否 | Y30: 是 | Z30: 否 | AA30: 否 | AB30: 否 | AC30: 是 | AD30: 否 | AE30: 否 | AF30: 否 | AG30: 否 | AH30: 25.09% | AI30: 否 | AJ30: 否 | AK30: 否 | AL30: 否 | AM30: 否 | AN30: 否 | AO30: 否 | AP30: 否 | AQ30: 否 | AR30: 是 | AS30: 是 | AT30: 否 | AU30: 否 | AV30: 否 | AW30: 否 | AX30: 否 | AY30: 否 | AZ30: 否 | BA30: 无 | BB30: 无 | BC30: 无 | BD30: 6 | BE30: 否 | BF30: 否 | BG30: 否 | BH30: 否 | BI30: 否 | BJ30: 否 | BK30: 3455.34 | BL30: 380.01 | BM30: 323.41
A31: 27 | B31: 都江堰宏鑫商品混凝土工程有限公司 | C31: 91510181689013695D | D31: 其他制造业 | E31: 301 | F31: 四川省成都市都江堰市崇义镇江安村六组 | G31: 江安村6组 | H31: 13007 | I31: 445 | J31: 14415 | K31: 409 | L31: 10761 | M31: 270 | N31: 6.58 | O31: 322 | P31: 0 | Q31: 60 | R31: 44.32 | S31: 0 | T31: 6634 | U31: 4758 | V31: 是 | W31: 2.509 | X31: 否 | Y31: 无 | Z31: 否 | AA31: 否 | AB31: 否 | AC31: 是 | AD31: 否 | AE31: 否 | AF31: 否 | AG31: 是 | AH31: -7.26% | AI31: 否 | AJ31: 否 | AK31: 否 | AL31: 否 | AM31: 否 | AN31: 否 | AO31: 否 | AP31: 否 | AQ31: 否 | AR31: 否 | AS31: 否 | AT31: 否 | AU31: 否 | AV31: 否 | AW31: 否 | AX31: 否 | AY31: 否 | AZ31: 否 | BA31: 无 | BB31: 无 | BC31: 无 | BD31: 无 | BE31: 否 | BF31: 否 | BG31: 否 | BH31: 否 | BI31: 否 | BJ31: 否 | BK31: 10761 | BL31: 270 | BM31: 322
A32: 28 | B32: 成都瑞华机械制造有限责任公司 | C32: 915101817801276932 | D32: 金属制品业 | E32: 4310 | F32: 都江堰市蒲阳镇金凤路358号 | G32: 青城山旅游装备产业功能区 | H32: 3767.34 | I32: 91.67 | J32: 4451.89 | K32: 186.51 | L32: 4750.4 | M32: 222.9 | N32: 29.28 | O32: 311.1 | P32: 483.19 | Q32: 91 | R32: 224.39 | S32: 0 | T32: 5081.47 | U32: 3220.42 | V32: 是 | W32: 4.692 | X32: 否 | Y32: 是 | Z32: 否 | AA32: 否 | AB32: 是 | AC32: 否 | AD32: 否 | AE32: 否 | AF32: 否 | AG32: 否 | AH32: 12.44% | AI32: 否 | AJ32: 否 | AK32: 否 | AL32: 1500 | AM32: 是 | AN32: 否 | AO32: 否 | AP32: 否 | AQ32: 否 | AR32: 否 | AS32: 否 | AT32: 否 | AU32: 市级 | AV32: 否 | AW32: 否 | AX32: 是 | AY32: 是 | AZ32: 否 | BA32: 无 | BB32: 无 | BC32: 无 | BD32: 无 | BE32: 否 | BF32: 否 | BG32: 否 | BH32: 否 | BI32: 是 | BJ32: 是 | BK32: 4750.4 | BL32: 222.9 | BM32: 311.1
A33: 29 | B33: 四川康特能药业有限公司 | C33: 91510104740340051Y | D33: 医药制造业 | E33: 2740 | F33: 四川省成都市都江堰市四川都江堰经济开发区紫金路1号 | G33: 四川都江堰经济开发区 | H33: 3434.16 | I33: -733.51 | J33: 4268.9 | K33: -528.14 | L33: 2010.5 | M33: -1184.29 | N33: 50 | O33: 300 | P33: 0 | Q33: 96 | R33: 237.63 | S33: 0 | T33: 26324 | U33: 32373 | V33: 否 | W33: -58.905 | X33: 是 | Y33: 无 | Z33: 否 | AA33: 否 | AB33: 是 | AC33: 否 | AD33: 否 | AE33: 否 | AF33: 否 | AG33: 否 | AH33: -14.30% | AI33: 否 | AJ33: 否 | AK33: 否 | AL33: 否 | AM33: 否 | AN33: 否 | AO33: 是 | AP33: 是 | AQ33: 否 | AR33: 否 | AS33: 否 | AT33: 否 | AU33: 否 | AV33: 是 | AW33: 否 | AX33: 否 | AY33: 是 | AZ33: 否 | BA33: 无 | BB33: 无 | BC33: 无 | BD33: 3 | BE33: 否 | BF33: 否 | BG33: 否 | BH33: 是 | BI33: 否 | BJ33: 否 | BK33: 2010.5 | BL33: -1184.29 | BM33: 300
A34: 30 | B34: 四川中旺科技有限公司 | C34: 91510181396592873H | D34: 专用设备制造业 | E34: 3523010 | F34: 都江堰市经济开发区金藤大道4号 | G34: 都江堰市蒲阳街道 | H34: 2492.26 | I34: 10.71 | J34: 3784.01 | K34: 147.79 | L34: 5988.94 | M34: 277.17 | N34: 5.39 | O34: 275.58 | P34: 275.35 | Q34: 32 | R34: 15.76 | S34: 0 | T34: 4493.22 | U34: 391789 | V34: 是 | W34: 4.628 | X34: 否 | Y34: 是 | Z34: 否 | AA34: 否 | AB34: 是 | AC34: 是 | AD34: 否 | AE34: 否 | AF34: 否 | AG34: 否 | AH34: 55.05% | AI34: 是 | AJ34: 是 | AK34: 否 | AL34: 否 | AM34: 否 | AN34: 是 | AO34: 否 | AP34: 否 | AQ34: 否 | AR34: 是 | AS34: 是 | AT34: 否 | AU34: 否 | AV34: 否 | AW34: 否 | AX34: 否 | AY34: 否 | AZ34: 否 | BA34: 无 | BB34: 无 | BC34: 无 | BD34: 2 | BE34: 否 | BF34: 否 | BG34: 是 | BH34: 是 | BI34: 否 | BJ34: 否 | BK34: 5988.94 | BL34: 277.17 | BM34: 275.58
A35: 31 | B35: 四川长和华锂科技有限公司 | C35: 91510181663010701E | D35: 其他制造业 | E35: 2611 | F35: 都江经济开发区凤鸣路2号 | G35: 都江经济开发区凤鸣路2号 | H35: 11042.5 | I35: -378.4 | J35: 12130.7 | K35: -520.5 | L35: 7626.3 | M35: -519.5 | N35: 43 | O35: 181.75 | P35: 311.6 | Q35: 78 | R35: 2200.79 | S35: 0.687 | T35: 7783.1 | U35: 2272.5 | V35: 否 | W35: -6.812 | X35: 是 | Y35: 是 | Z35: 否 | AA35: 否 | AB35: 否 | AC35: 否 | AD35: 否 | AE35: 否 | AF35: 否 | AG35: 否 | AH35: -13.64% | AI35: 否 | AJ35: 否 | AK35: 否 | AL35: 否 | AM35: 否 | AN35: 是 | AO35: 否 | AP35: 否 | AQ35: 否 | AR35: 是 | AS35: 是 | AT35: 否 | AU35: 否 | AV35: 否 | AW35: 否 | AX35: 否 | AY35: 是 | AZ35: 否 | BA35: 无 | BB35: 无 | BC35: 无 | BD35: 2 | BE35: 否 | BF35: 否 | BG35: 否 | BH35: 否 | BI35: 否 | BJ35: 否 | BK35: 7626.3 | BL35: -519.5 | BM35: 181.75
A36: 32 | B36: 四川瑞天光学有限责任公司 | C36: 915101815826033458 | D36: 制造业 | E36: 制造业 | F36: 都江堰市蒲阳经济开发区同心路66号 | G36: 蒲阳街道办 | H36: 2618 | I36: 92 | J36: 3253 | K36: 216 | L36: 3675 | M36: 240 | N36: 4.2 | O36: 247.85 | P36: 200.02 | Q36: 70 | R36: 319.28 | S36: 0 | T36: 2385 | U36: 1628 | V36: 是 | W36: 6.531 | X36: 否 | Y36: 是 | Z36: 否 | AA36: 否 | AB36: 否 | AC36: 是 | AD36: 否 | AE36: 否 | AF36: 否 | AG36: 否 | AH36: 18.61% | AI36: 否 | AJ36: 否 | AK36: 否 | AL36: 否 | AM36: 否 | AN36: 是 | AO36: 否 | AP36: 否 | AQ36: 否 | AR36: 否 | AS36: 是 | AT36: 否 | AU36: 否 | AV36: 否 | AW36: 否 | AX36: 否 | AY36: 否 | AZ36: 否 | BA36: 无 | BB36: 无 | BC36: 无 | BD36: 无 | BE36: 否 | BF36: 否 | BG36: 否 | BH36: 否 | BI36: 否 | BJ36: 否 | BK36: 3675 | BL36: 240 | BM36: 247.85
A37: 33 | B37: 都江堰市金盾防护设备有限责任公司 | C37: 915101817092602994 | D37: 金属制品业 | E37: 3312 | F37: 都江堰市蒲阳工业区泰兴大道21号 | G37: 都江堰市经济开发区 | H37: 5376 | I37: 21 | J37: 6015 | K37: 45 | L37: 6523 | M37: 225 | N37: 38 | O37: 247 | P37: 220 | Q37: 98 | R37: 0.03 | S37: 0 | T37: 23377 | U37: 1727 | V37: 是 | W37: 3.449 | X37: 否 | Y37: 是 | Z37: 否 | AA37: 否 | AB37: 否 | AC37: 是 | AD37: 否 | AE37: 否 | AF37: 否 | AG37: 否 | AH37: 10.17% | AI37: 否 | AJ37: 否 | AK37: 否 | AL37: 否 | AM37: 否 | AN37: 否 | AO37: 是 | AP37: 否 | AQ37: 否 | AR37: 否 | AS37: 是 | AT37: 否 | AU37: 否 | AV37: 是 | AW37: 是 | AX37: 是 | AY37: 是 | AZ37: 否 | BA37: 无 | BB37: 无 | BC37: 无 | BD37: 3 | BE37: 否 | BF37: 否 | BG37: 否 | BH37: 否 | BI37: 否 | BJ37: 否 | BK37: 6523 | BL37: 225 | BM37: 247
A38: 34 | B38: 成都天城精密机械有限公司 | C38: 915101810724263424 | D38: 金属制品业 | E38: C3391 | F38: 四川省成都市都江堰市四川都江堰经济开发区干河子路202号 | G38: 都江堰经济开发区 | H38: 2021 | I38: 109 | J38: 2563 | K38: 214 | L38: 1901 | M38: 180 | N38: 21.35 | O38: 148 | P38: 0 | Q38: 78 | R38: 19.1 | S38: 0.6 | T38: 2055 | U38: 394 | V38: 是 | W38: 9.469 | X38: 否 | Y38: 是 | Z38: 否 | AA38: 否 | AB38: 否 | AC38: 是 | AD38: 否 | AE38: 否 | AF38: 否 | AG38: 否 | AH38: 0.49% | AI38: 否 | AJ38: 否 | AK38: 否 | AL38: 否 | AM38: 否 | AN38: 是 | AO38: 否 | AP38: 否 | AQ38: 否 | AR38: 否 | AS38: 是 | AT38: 否 | AU38: 否 | AV38: 是 | AW38: 否 | AX38: 是 | AY38: 否 | AZ38: 否 | BA38: 是 | BB38: 无 | BC38: 无 | BD38: 1 | BE38: 否 | BF38: 否 | BG38: 否 | BH38: 否 | BI38: 否 | BJ38: 否 | BK38: 1901 | BL38: 180 | BM38: 148
A39: 35 | B39: 四川炬科光学科技有限公司 | C39: 91510181MA6CG8BJ30 | D39: 其他制造业 | E39: C40 | F39: 都江堰经济开发区泰兴大道18号 | G39: 蒲阳镇金凤社区 | H39: 502 | I39: -3.6 | J39: 500 | K39: -2.4 | L39: 3237 | M39: 561 | N39: 24.5 | O39: 246 | P39: 508 | Q39: 78 | R39: 62 | S39: 0 | T39: 3660 | U39: 2653 | V39: 否 | W39: 17.331 | X39: 否 | Y39: 是 | Z39: 是 | AA39: 否 | AB39: 是 | AC39: 否 | AD39: 否 | AE39: 否 | AF39: 行业 | AG39: 否 | AH39: 273.50% | AI39: 否 | AJ39: 否 | AK39: 否 | AL39: 3000 | AM39: 是 | AN39: 是 | AO39: 否 | AP39: 否 | AQ39: 否 | AR39: 否 | AS39: 是 | AT39: 否 | AU39: 否 | AV39: 是 | AW39: 否 | AX39: 是 | AY39: 是 | AZ39: 否 | BA39: 无 | BB39: 无 | BC39: 无 | BD39: 1 | BE39: 否 | BF39: 是 | BG39: 是 | BH39: 是 | BI39: 是 | BJ39: 是 | BK39: 3237 | BL39: 561 | BM39: 246
A40: 36 | B40: 四川中金医药包装有限公司 | C40: 91510181749719519C | D40: 医药制造业 | E40: 2780 | F40: 都江堰市经济开发区九鼎大道11号 | G40: 青城山旅游装备产业功能区 | H40: 6452 | I40: 271 | J40: 7044 | K40: 323 | L40: 7517 | M40: 451 | N40: 39.1 | O40: 243 | P40: 305 | Q40: 86 | R40: 481.37 | S40: 0 | T40: 9080 | U40: 1454 | V40: 是 | W40: 6.000 | X40: 否 | Y40: 是 | Z40: 否 | AA40: 否 | AB40: 否 | AC40: 否 | AD40: 否 | AE40: 否 | AF40: 否 | AG40: 否 | AH40: 7.95% | AI40: =IF(M40<10000,IF((M40/K40+K40/I40)*0.5-1<0,(M40/K40+K40/I40)*0.5-1,"否"),"否") -> 否 | AJ40: 否 | AK40: 否 | AL40: 否 | AM40: 否 | AN40: 否 | AO40: 否 | AP40: 否 | AQ40: 否 | AR40: 否 | AS40: 否 | AT40: 否 | AU40: 否 | AV40: 否 | AW40: 否 | AX40: 否 | AY40: 否 | AZ40: 否 | BA40: 无 | BB40: 无 | BC40: 无 | BD40: 无 | BE40: 否 | BF40: 否 | BG40: 否 | BH40: 否 | BI40: 否 | BJ40: 否 | BK40: 7517 | BL40: 451 | BM40: 243
A41: 37 | B41: 都江堰市煜杰建材有限公司 | C41: 915101816653289753 | D41: 其他制造业 | E41: 301 | F41: 都江堰市蒲阳镇堰华路624号 | G41: 青城山旅游装备产业功能区 | H41: 3336 | I41: 194 | J41: 5681 | K41: 342 | L41: 4067 | M41: 51.9 | N41: 29.1314 | O41: 238 | P41: 0 | Q41: 60 | R41: 24.81 | S41: 0 | T41: 10571 | U41: 8345 | V41: 是 | W41: 1.276 | X41: 否 | Y41: 是 | Z41: 否 | AA41: 否 | AB41: 否 | AC41: 是 | AD41: 否 | AE41: 否 | AF41: 否 | AG41: 否 | AH41: 20.94% | AI41: 否 | AJ41: 否 | AK41: 否 | AL41: 否 | AM41: 否 | AN41: 否 | AO41: 否 | AP41: 否 | AQ41: 否 | AR41: 否 | AS41: 否 | AT41: 否 | AU41: 否 | AV41: 是 | AW41: 否 | AX41: 是 | AY41: 是 | AZ41: 否 | BA41: 无 | BB41: 无 | BC41: 无 | BD41: 3 | BE41: 否 | BF41: 否 | BG41: 否 | BH41: 否 | BI41: 否 | BJ41: 否 | BK41: 4067 | BL41: 51.9 | BM41: 238
A42: 38 | B42: 四川固康药业有限责任公司 | C42: 91510181057490557M | D42: 医药制造业 | E42: 2730 | F42: 都江堰经济开发区泰兴大道20号 | G42: 青城山旅游装备产业功能区 | H42: 6674.25 | I42: 822.04 | J42: 14566.26 | K42: 657.89 | L42: 15038.67 | M42: 948.61 | N42: 33 | O42: =188.81+43.21 -> 232.02 | P42: 616 | Q42: 96 | R42: 39.26 | S42: 0 | T42: 8666 | U42: 4488.82 | V42: 是 | W42: 6.308 | X42: 否 | Y42: 是 | Z42: 否 | AA42: 否 | AB42: 是 | AC42: 是 | AD42: 否 | AE42: 否 | AF42: 否 | AG42: 是 | AH42: 60.74% | AI42: 是 | AJ42: 否 | AK42: 是 | AL42: 2000 | AM42: 否 | AN42: 否 | AO42: 否 | AP42: 否 | AQ42: 否 | AR42: 否 | AS42: 是 | AT42: 否 | AU42: 否 | AV42: 否 | AW42: 否 | AX42: 否 | AY42: 否 | AZ42: 否 | BA42: 无 | BB42: 无 | BC42: 无 | BD42: 2 | BE42: 否 | BF42: 否 | BG42: 否 | BH42: 否 | BI42: 是 | BJ42: 否 | BK42: 15038.67 | BL42: 948.61 | BM42: 232.02
A43: 39 | B43: 成都展新电熔耐火材料有限公司 | C43: 91510181755967893R | D43: 其他制造业 | E43: 3089 | F43: 都江堰天马镇 | G43: 驾虹社区共和路90号 | H43: 3006 | I43: 44 | J43: 3904 | K43: 73 | L43: 3435 | M43: 67 | N43: 15 | O43: 230 | P43: 180 | Q43: 55 | R43: 780 | S43: 0 | T43: 3390 | U43: 2459 | V43: 是 | W43: 1.951 | X43: 否 | Y43: 无 | Z43: 否 | AA43: 否 | AB43: 否 | AC43: 是 | AD43: 是 | AE43: 否 | AF43: 否 | AG43: 否 | AH43: 8.93% | AI43: 否 | AJ43: 否 | AK43: 否 | AL43: 否 | AM43: 否 | AN43: 否 | AO43: 否 | AP43: 是 | AQ43: 否 | AR43: 否 | AS43: 否 | AT43: 否 | AU43: 否 | AV43: 是 | AW43: 否 | AX43: 否 | AY43: 是 | AZ43: 否 | BA43: 无 | BB43: 无 | BC43: 无 | BD43: 无 | BE43: 否 | BF43: 否 | BG43: 否 | BH43: 是 | BI43: 否 | BJ43: 否 | BK43: 3435 | BL43: 67 | BM43: 230
A44: 40 | B44: 四川都江堰金马木质防火门有限公司 | C44: 9151018162187224XR | D44: 其他制造业 | E44: 2032 | F44: 都江堰市天马镇 | G44: 仙鹤社区7组 | H44: 4673 | I44: 56 | J44: 5273 | K44: 109 | L44: 5211 | M44: 108 | N44: 10.5 | O44: 221 | P44: 0 | Q44: 62 | R44: 168.43 | S44: 0 | T44: 3465 | U44: 2722 | V44: 是 | W44: 2.073 | X44: 否 | Y44: 无 | Z44: 否 | AA44: 否 | AB44: 否 | AC44: 是 | AD44: 否 | AE44: 否 | AF44: 否 | AG44: 否 | AH44: 5.83% | AI44: 否 | AJ44: 否 | AK44: 否 | AL44: 否 | AM44: 否 | AN44: 否 | AO44: 否 | AP44: 否 | AQ44: 否 | AR44: 否 | AS44: 否 | AT44: 否 | AU44: 否 | AV44: 是 | AW44: 否 | AX44: 是 | AY44: 是 | AZ44: 否 | BA44: 无 | BB44: 无 | BC44: 无 | BD44: 3 | BE44: 否 | BF44: 否 | BG44: 否 | BH44: 是 | BI44: 否 | BJ44: 否 | BK44: 5211 | BL44: 108 | BM44: 221
A45: 41 | B45: 四川岷阳精机制造有限公司 | C45: 9151018169885164XK | D45: 其他制造业 | E45: 4190 | F45: 九鼎大道14号 | G45: 青城山旅游装备功能区 | H45: 3893.7 | I45: 31.6 | J45: 4413 | K45: 57.7 | L45: 3893.7 | M45: 59.2 | N45: 49 | O45: 216 | P45: 0.4 | Q45: 124 | R45: 8.99 | S45: 0 | T45: 6661 | U45: 5781 | V45: 是 | W45: 1.520 | X45: 否 | Y45: 无 | Z45: 否 | AA45: 否 | AB45: 否 | AC45: 是 | AD45: 否 | AE45: 否 | AF45: 否 | AG45: 否 | AH45: 0.78% | AI45: 否 | AJ45: 否 | AK45: 否 | AL45: 否 | AM45: 否 | AN45: 否 | AO45: 否 | AP45: 否 | AQ45: 否 | AR45: 否 | AS45: 否 | AT45: 否 | AU45: 否 | AV45: 否 | AW45: 否 | AX45: 否 | AY45: 否 | AZ45: 否 | BA45: 无 | BB45: 无 | BC45: 无 | BD45: 无 | BE45: 否 | BF45: 否 | BG45: 否 | BH45: 否 | BI45: 否 | BJ45: 否 | BK45: 3893.7 | BL45: 59.2 | BM45: 216
A46: 42 | B46: 四川雅泰建材有限公司 | C46: 91510181080614597Q | D46: 其他制造业 | E46: C2929 塑料零件及其他塑料制品制造 | F46: 都江堰市泰兴大道27号 | G46: 都江堰工业园区 | H46: 5453.84 | I46: 190.69 | J46: 6622.5 | K46: 200.76 | L46: 5790 | M46: 176 | N46: 11 | O46: 216 | P46: 0 | Q46: 70 | R46: 1157.69 | S46: 0 | T46: 2513 | U46: 1379 | V46: 是 | W46: 3.040 | X46: 否 | Y46: 无 | Z46: 否 | AA46: 否 | AB46: 是 | AC46: 否 | AD46: 否 | AE46: 否 | AF46: 否 | AG46: 否 | AH46: 4.43% | AI46: 否 | AJ46: 否 | AK46: 否 | AL46: 否 | AM46: 否 | AN46: 否 | AO46: 否 | AP46: 否 | AQ46: 否 | AR46: 否 | AS46: 否 | AT46: 否 | AU46: 否 | AV46: 否 | AW46: 否 | AX46: 否 | AY46: 否 | AZ46: 否 | BA46: 无 | BB46: 无 | BC46: 无 | BD46: 无 | BE46: 否 | BF46: 否 | BG46: 否 | BH46: 否 | BI46: 否 | BJ46: 否 | BK46: 5790 | BL46: 176 | BM46: 216
A47: 43 | B47: 成都智琪食品有限责任公司 | C47: 91510181577361329P | D47: 食品制造业 | E47: 1452 | F47: 都江堰市经济开发区就业创业基地7-1号厂房 | G47: 蒲阳 | H47: 3967 | I47: 143 | J47: 5342 | K47: 149 | L47: 4450 | M47: -188 | N47: 2685 | O47: 214 | P47: 0 | Q47: 79 | R47: 105.69 | S47: 0 | T47: 473 | U47: 13 | V47: 否 | W47: -4.225 | X47: 否 | Y47: 无 | Z47: 否 | AA47: 否 | AB47: 否 | AC47: 否 | AD47: 否 | AE47: 否 | AF47: 否 | AG47: 否 | AH47: 8.98% | AI47: 否 | AJ47: 否 | AK47: 否 | AL47: 否 | AM47: 否 | AN47: 否 | AO47: 否 | AP47: 否 | AQ47: 否 | AR47: 否 | AS47: 否 | AT47: 否 | AU47: 否 | AV47: 否 | AW47: 否 | AX47: 否 | AY47: 否 | AZ47: 否 | BA47: 无 | BB47: 无 | BC47: 无 | BD47: 无 | BE47: 否 | BF47: 否 | BG47: 否 | BH47: 否 | BI47: 否 | BJ47: 否 | BK47: 4450 | BL47: -188 | BM47: 214
A48: 44 | B48: 都江堰市江宁机械有限公司 | C48: 9.15101818e+17 | D48: 通用设备制造业 | E48: 341 | F48: 都江堰市经济开发区泰兴大道16号 | G48: 都江堰经济开发区 | H48: 2759.75 | I48: 80.59 | J48: 3756.17 | K48: 418.56 | L48: 4810.88 | M48: 663.8 | N48: 18 | O48: 212.02 | P48: 578 | Q48: 117 | R48: 132.49 | S48: 0 | T48: 5629.5 | U48: 3310.56 | V48: 是 | W48: 13.798 | X48: 否 | Y48: 无 | Z48: 是 | AA48: 否 | AB48: 否 | AC48: 是 | AD48: 是 | AE48: 否 | AF48: 否 | AG48: 否 | AH48: 32.09% | AI48: 否 | AJ48: 否 | AK48: 是 | AL48: 否 | AM48: 否 | AN48: 是 | AO48: 是 | AP48: 是 | AQ48: 否 | AR48: 否 | AS48: 是 | AT48: 否 | AU48: 否 | AV48: 否 | AW48: 否 | AX48: 否 | AY48: 是 | AZ48: 是 | BA48: 无 | BB48: 无 | BC48: 无 | BD48: 2 | BE48: 否 | BF48: 否 | BG48: 否 | BH48: 是 | BI48: 否 | BJ48: 否 | BK48: 4810.88 | BL48: 663.8 | BM48: 212.02
A49: 45 | B49: 都江堰市超越机械制造有限公司 | C49: 91510181202760163H | D49: 金属制品业 | E49: C3391 | F49: 都江堰市石羊镇工业大道60号 | G49: 石羊镇 | H49: 3197.5 | I49: 31.6 | J49: 4413 | K49: 57.7 | L49: 3893.7 | M49: 59.2 | N49: 20 | O49: 208.7 | P49: 0 | Q49: 103 | R49: 422.95 | S49: 0 | T49: 5683.6 | U49: 3886.4 | V49: 是 | W49: 1.520 | X49: 否 | Y49: 无 | Z49: 否 | AA49: 否 | AB49: 否 | AC49: 否 | AD49: 否 | AE49: 否 | AF49: 否 | AG49: 否 | AH49: 13.12% | AI49: 否 | AJ49: 否 | AK49: 否 | AL49: 否 | AM49: 否 | AN49: 否 | AO49: 否 | AP49: 否 | AQ49: 否 | AR49: 否 | AS49: 是 | AT49: 否 | AU49: 否 | AV49: 否 | AW49: 是 | AX49: 是 | AY49: 是 | AZ49: 否 | BA49: 无 | BB49: 无 | BC49: 无 | BD49: 无 | BE49: 否 | BF49: 否 | BG49: 否 | BH49: 否 | BI49: 否 | BJ49: 否 | BK49: 3893.7 | BL49: 59.2 | BM49: 208.7
A50: 46 | B50: 都江堰宁江宗汇精密小型蜗杆有限责任公司 | C50: 91510181765360497F | D50: 通用设备制造业 | E50: 341 | F50: 都江堰市蒲阳大道1359号 | G50: 银杏街道办 | H50: 2304 | I50: -93 | J50: 3341 | K50: 89 | L50: 3496 | M50: 110 | N50: 12 | O50: 207 | P50: 0 | Q50: 173 | R50: 68.63 | S50: 0 | T50: 2559 | U50: 524 | V50: 是 | W50: 3.146 | X50: 否 | Y50: 是 | Z50: 否 | AA50: 否 | AB50: 是 | AC50: 否 | AD50: 否 | AE50: 否 | AF50: 否 | AG50: 否 | AH50: 24.82% | AI50: 否 | AJ50: 否 | AK50: 否 | AL50: 否 | AM50: 否 | AN50: 是 | AO50: 是 | AP50: 否 | AQ50: 否 | AR50: 是 | AS50: 是 | AT50: 否 | AU50: 否 | AV50: 是 | AW50: 否 | AX50: 是 | AY50: 是 | AZ50: 否 | BA50: 无 | BB50: 有 | BC50: 无 | BD50: 3 | BE50: 否 | BF50: 否 | BG50: 是 | BH50: 是 | BI50: 否 | BJ50: 否 | BK50: 3496 | BL50: 110 | BM50: 207
A51: 47 | B51: 四川鑫大福门业有限公司 | C51: 91510181L14397638L | D51: 家具行业 | E51: 家具行业 | F51: 四川省成都市都江堰市永丰街道办永寿社区十三组 | G51: 幸福街道办 | H51: 1320.9 | I51: 67.9 | J51: 4291 | K51: 98.8 | L51: 61761.1 | M51: 263.04 | N51: 8.4 | O51: 201 | P51: 316 | Q51: 140 | R51: 6.06 | S51: 0 | T51: 4158 | U51: 2359 | V51: 是 | W51: 0.426 | X51: 否 | Y51: 无 | Z51: 否 | AA51: 否 | AB51: 否 | AC51: 是 | AD51: 否 | AE51: 否 | AF51: 否 | AG51: 是 | AH51: 782.09% | AI51: 否 | AJ51: 否 | AK51: 否 | AL51: 否 | AM51: 否 | AN51: 否 | AO51: 否 | AP51: 否 | AQ51: 否 | AR51: 否 | AS51: 否 | AT51: 否 | AU51: 否 | AV51: 否 | AW51: 是 | AX51: 是 | AY51: 是 | AZ51: 否 | BA51: 是 | BB51: 有 | BC51: 无 | BD51: 2 | BE51: 否 | BF51: 否 | BG51: 否 | BH51: 否 | BI51: 否 | BJ51: 否 | BK51: 61761.1 | BL51: 263.04 | BM51: 201
A52: 48 | B52: 四川都钢钢铁集团股份有限公司 | C52: 915101007528219871 | D52: 其他制造业 | E52: 3120 3130 | F52: 成都市都江堰市天马镇童子山 四川都江堰经济技术开发区团结路78号 | G52: 四川都江堰经济技术开发区 | H52: 152369.8 | I52: 4299.48 | J52: 253177.5 | K52: -5339.88 | L52: 271677 | M52: 2110.56 | N52: 112 | O52: 8887.65 | P52: 0 | Q52: 550 | R52: 71804.81 | S52: 44.86 | T52: 69732.8 | U52: 49224.9 | V52: 否 | W52: 0.777 | X52: 否 | Y52: 是 | Z52: 否 | AA52: 否 | AB52: 否 | AC52: 否 | AD52: 否 | AE52: 否 | AF52: 否 | AG52: 是 | AH52: 36.73% | AI52: 否 | AJ52: 否 | AK52: 否 | AL52: 155000 | AM52: 否 | AN52: 否 | AO52: 否 | AP52: 是 | AQ52: 否 | AR52: 否 | AS52: 否 | AT52: 否 | AU52: 否 | AV52: 是 | AW52: 否 | AX52: 否 | AY52: 是 | AZ52: 是 | BA52: 无 | BB52: 无 | BC52: 无 | BD52: 3 | BE52: 否 | BF52: 是 | BG52: 否 | BH52: 是 | BI52: 否 | BJ52: 是 | BK52: 271677 | BL52: 2110.56 | BM52: 8887.65
A53: 49 | B53: 都江堰市聚益炭素有限公司 | C53: 91510181749738285E | D53: 其他制造业 | E53: 3191 | F53: 都江堰市凤鸣路1号 | G53: 青城山旅游装备产业园 | H53: 3444.49 | I53: 608.2 | J53: 2978.31 | K53: 298 | L53: 2829.98 | M53: 449.5 | N53: 38 | O53: 278.75 | P53: 0 | Q53: 40 | R53: 1476 | S53: 1.5 | T53: 4690.3 | U53: 1806.4 | V53: 是 | W53: 15.884 | X53: 否 | Y53: 是 | Z53: 否 | AA53: 否 | AB53: 否 | AC53: 否 | AD53: 是 | AE53: 否 | AF53: 否 | AG53: 否 | AH53: -9.26% | AI53: 否 | AJ53: 否 | AK53: 否 | AL53: 否 | AM53: 否 | AN53: 否 | AO53: 否 | AP53: 否 | AQ53: 否 | AR53: 否 | AS53: 否 | AT53: 否 | AU53: 否 | AV53: 否 | AW53: 否 | AX53: 否 | AY53: 否 | AZ53: 否 | BA53: 无 | BB53: 无 | BC53: 无 | BD53: 无 | BE53: 否 | BF53: 否 | BG53: 否 | BH53: 否 | BI53: 否 | BJ53: 否 | BK53: 2829.98 | BL53: 449.5 | BM53: 278.75
A54: 50 | B54: 都江堰市南方真空实业有限公司 | C54: 91510181720300992N | D54: 其他制造业 | E54: 291 | F54: 都江堰市蒲阳镇经开区泰兴大道25号 | G54: 经开区 | H54: 3400 | I54: -123 | J54: 3895 | K54: -104 | L54: 4200 | M54: 35 | N54: 50 | O54: 332 | P54: 20 | Q54: 239 | R54: 2500 | S54: 1.8 | T54: 7074 | U54: 2847 | V54: 否 | W54: 0.833 | X54: 否 | Y54: 是 | Z54: 否 | AA54: 否 | AB54: 否 | AC54: 是 | AD54: 否 | AE54: 否 | AF54: 否 | AG54: 否 | AH54: 11.19% | AI54: 否 | AJ54: 否 | AK54: 否 | AL54: 否 | AM54: 否 | AN54: 否 | AO54: 否 | AP54: 否 | AQ54: 否 | AR54: 否 | AS54: 否 | AT54: 否 | AU54: 否 | AV54: 否 | AW54: 否 | AX54: 否 | AY54: 是 | AZ54: 否 | BA54: 无 | BB54: 无 | BC54: 无 | BD54: 2 | BE54: 否 | BF54: 否 | BG54: 否 | BH54: 否 | BI54: 否 | BJ54: 否 | BK54: 4200 | BL54: 35 | BM54: 332
A55: 51 | B55: 成都铁城精密铸造有限公司 | C55: 91510181765366362J | D55: 金属制品业 | E55: 3311 | F55: 都江堰市蒲阳镇双柏村6组42号 | G55: 蒲阳街道 | H55: 5099 | I55: 40 | J55: 5695 | K55: 97 | L55: 4401 | M55: 50 | N55: 6 | O55: 182 | P55: 0 | Q55: 205 | R55: 811.06 | S55: 0 | T55: 3834 | U55: 1898 | V55: 是 | W55: 1.136 | X55: 否 | Y55: 无 | Z55: 否 | AA55: 否 | AB55: 否 | AC55: 是 | AD55: 否 | AE55: 否 | AF55: 否 | AG55: 否 | AH55: -5.52% | AI55: 否 | AJ55: 否 | AK55: 否 | AL55: 否 | AM55: 否 | AN55: 否 | AO55: 否 | AP55: 否 | AQ55: 否 | AR55: 是 | AS55: 否 | AT55: 否 | AU55: 否 | AV55: 否 | AW55: 否 | AX55: 否 | AY55: 否 | AZ55: 否 | BA55: 无 | BB55: 无 | BC55: 无 | BD55: 2 | BE55: 否 | BF55: 否 | BG55: 否 | BH55: 否 | BI55: 是 | BJ55: 否 | BK55: 4401 | BL55: 50 | BM55: 182
A56: 52 | B56: 四川上药申都中药有限公司 | C56: 91510181684553908B | D56: 农业 | E56: 273 | F56: 四川省成都市都江堰市四川都江堰经济开发区堰华路614号 | G56: 都江堰经济开发区 | H56: 27864 | I56: 50.32 | J56: 23635 | K56: -323 | L56: 13602 | M56: -599.95 | N56: 20 | O56: 173.65 | P56: 0 | Q56: 43 | R56: 10.84 | S56: 0 | T56: 14833 | U56: 13369.06 | V56: 否 | W56: -4.411 | X56: 否 | Y56: 是 | Z56: 否 | AA56: 否 | AB56: 否 | AC56: 否 | AD56: 否 | AE56: 否 | AF56: 否 | AG56: 是 | AH56: -28.81% | AI56: 否 | AJ56: 否 | AK56: 否 | AL56: 否 | AM56: 否 | AN56: 否 | AO56: 否 | AP56: 否 | AQ56: 否 | AR56: 否 | AS56: 否 | AT56: 否 | AU56: 否 | AV56: 否 | AW56: 否 | AX56: 否 | AY56: 否 | AZ56: 否 | BA56: 无 | BB56: 无 | BC56: 无 | BD56: 无 | BE56: 否 | BF56: 否 | BG56: 否 | BH56: 否 | BI56: 否 | BJ56: 否 | BK56: 13602 | BL56: -599.95 | BM56: 173.65
A57: 53 | B57: 都江堰川相铝业有限公司 | C57: 91510181MA6CBFNF9R | D57: 其他制造业 | E57: 3240 | F57: 四川省成都市都江堰市泰兴大道10号 | G57: 蒲阳工业园区 | H57: 4332 | I57: 188 | J57: 7118 | K57: 168 | L57: 6232 | M57: 160 | N57: 20.52 | O57: 173.1 | P57: 0 | Q57: 105 | R57: 758.15 | S57: 0 | T57: 5119 | U57: 2687 | V57: 是 | W57: 2.567 | X57: 否 | Y57: 无 | Z57: 否 | AA57: 否 | AB57: 否 | AC57: 否 | AD57: 否 | AE57: 否 | AF57: 否 | AG57: 否 | AH57: 25.93% | AI57: 否 | AJ57: 否 | AK57: 否 | AL57: 否 | AM57: 否 | AN57: 否 | AO57: 否 | AP57: 否 | AQ57: 否 | AR57: 否 | AS57: 否 | AT57: 否 | AU57: 否 | AV57: 否 | AW57: 否 | AX57: 否 | AY57: 否 | AZ57: 否 | BA57: 无 | BB57: 无 | BC57: 无 | BD57: 无 | BE57: 否 | BF57: 否 | BG57: 否 | BH57: 否 | BI57: 否 | BJ57: 否 | BK57: 6232 | BL57: 160 | BM57: 173.1
A58: 54 | B58: 都江堰市恒通磁电有限公司 | C58: 91510181755999641Q | D58: 其他制造业 | E58: 3985 | F58: 都江堰市蒲阳镇双柏社区7组44号 | G58: 蒲阳街道 | H58: 1499 | I58: 24 | J58: 1774 | K58: 31 | L58: 2802 | M58: 175 | N58: 11.6 | O58: 167 | P58: 88 | Q58: 90 | R58: 0.09 | S58: 0 | T58: 3002 | U58: 1729 | V58: 是 | W58: 6.246 | X58: 否 | Y58: 是 | Z58: 否 | AA58: 否 | AB58: 否 | AC58: 是 | AD58: 否 | AE58: 否 | AF58: 否 | AG58: 否 | AH58: 38.15% | AI58: 否 | AJ58: 否 | AK58: 否 | AL58: 否 | AM58: 否 | AN58: 是 | AO58: 否 | AP58: 否 | AQ58: 否 | AR58: 否 | AS58: 是 | AT58: 否 | AU58: 否 | AV58: 是 | AW58: 是 | AX58: 是 | AY58: 是 | AZ58: 否 | BA58: 无 | BB58: 无 | BC58: 无 | BD58: 4 | BE58: 否 | BF58: 否 | BG58: 否 | BH58: 否 | BI58: 否 | BJ58: 否 | BK58: 2802 | BL58: 175 | BM58: 167
A59: 55 | B59: 四川康能电气股份有限公司 | C59: 91510181693656386F | D59: 其他制造业 | E59: 4350 | F59: 都江堰市经济开发区堰华路616号 | G59: 蒲阳镇 | H59: 8995.85 | I59: 141.08 | J59: 9460.04 | K59: 681.03 | L59: 6770 | M59: 177 | N59: 54.7022 | O59: 270 | P59: 653.5 | Q59: 98 | R59: 26 | S59: 1.7 | T59: 12206 | U59: 3205 | V59: 是 | W59: 2.614 | X59: 否 | Y59: 无 | Z59: 否 | AA59: 否 | AB59: 是 | AC59: 是 | AD59: 否 | AE59: 否 | AF59: 否 | AG59: 否 | AH59: -11.64% | AI59: 是 | AJ59: 否 | AK59: 否 | AL59: 否 | AM59: 是 | AN59: 是 | AO59: 否 | AP59: 是 | AQ59: 否 | AR59: 否 | AS59: 是 | AT59: 否 | AU59: 否 | AV59: 否 | AW59: 否 | AX59: 是 | AY59: 否 | AZ59: 否 | BA59: 无 | BB59: 无 | BC59: 无 | BD59: 3 | BE59: 否 | BF59: 否 | BG59: 否 | BH59: 是 | BI59: 是 | BJ59: 是 | BK59: 6770 | BL59: 177 | BM59: 270
A60: 56 | B60: 四川蜀腾母线有限公司 | C60: 9151018139691334X6 | D60: 其他制造业 | E60: 3829 | F60: 四川省成都市都江堰市经济开发区拉法基大道5号 | G60: 青城山旅游装备产业功能区 都江堰蒲阳街道 | H60: 2288 | I60: 69 | J60: 3553 | K60: 100 | L60: 4714 | M60: 144 | N60: 6 | O60: 142 | P60: 402 | Q60: 32 | R60: 9.17 | S60: 0 | T60: 1980 | U60: 986 | V60: 是 | W60: 3.055 | X60: 否 | Y60: 无 | Z60: 否 | AA60: 否 | AB60: 是 | AC60: 是 | AD60: 否 | AE60: 否 | AF60: 否 | AG60: 否 | AH60: 43.98% | AI60: 否 | AJ60: 否 | AK60: 否 | AL60: 否 | AM60: 是 | AN60: 是 | AO60: 否 | AP60: 否 | AQ60: 否 | AR60: 否 | AS60: 是 | AT60: 否 | AU60: 否 | AV60: 否 | AW60: 否 | AX60: 否 | AY60: 否 | AZ60: 否 | BA60: 无 | BB60: 无 | BC60: 无 | BD60: 3 | BE60: 否 | BF60: 否 | BG60: 是 | BH60: 是 | BI60: 否 | BJ60: 否 | BK60: 4714 | BL60: 144 | BM60: 142
A61: 57 | B61: 四川第尔电气成套设备有限公司 | C61: 91501181MA6C92UB45 | D61: 其他制造业 | E61: 4012 | F61: 都江堰市都江堰经济开发区拉法基大道5号 | G61: 都江堰经济开发区 | H61: 1402.2783 | I61: 12.1608 | J61: 6179.5961 | K61: 143.4014 | L61: 3863.9956 | M61: 128.1135 | N61: 2863 | O61: 140.7678 | P61: 217.8192 | Q61: 30 | R61: 3.93 | S61: 0 | T61: 3457.5838 | U61: 1335.5962 | V61: 是 | W61: 3.316 | X61: 否 | Y61: 是 | Z61: 否 | AA61: 否 | AB61: 是 | AC61: 是 | AD61: 否 | AE61: 否 | AF61: 否 | AG61: 否 | AH61: 151.61% | AI61: 否 | AJ61: 否 | AK61: 否 | AL61: 否 | AM61: 是 | AN61: 否 | AO61: 否 | AP61: 否 | AQ61: 否 | AR61: 否 | AS61: 是 | AT61: 否 | AU61: 否 | AV61: 否 | AW61: 否 | AX61: 否 | AY61: 否 | AZ61: 否 | BA61: 无 | BB61: 无 | BC61: 无 | BD61: 3 | BE61: 否 | BF61: 否 | BG61: 是 | BH61: 否 | BI61: 否 | BJ61: 否 | BK61: 3863.9956 | BL61: 128.1135 | BM61: 140.7678
A62: 58 | B62: 成都创奇汽车制造有限公司 | C62: 915101817497129822 | D62: 汽车制造业 | E62: 3660 | F62: 都江堰市聚源镇崇义新马路上街101号 | G62: 都江堰市聚源镇 | H62: 12044.3 | I62: 309.4 | J62: 6784.7 | K62: 150.8 | L62: 12342.2 | M62: 536.1 | N62: 60 | O62: 137.2 | P62: 0 | Q62: 118 | R62: 358 | S62: 0 | T62: 6189 | U62: 2626 | V62: 是 | W62: 4.344 | X62: 否 | Y62: 无 | Z62: 否 | AA62: 否 | AB62: 否 | AC62: 否 | AD62: 否 | AE62: 否 | AF62: 否 | AG62: 是 | AH62: 19.12% | AI62: 否 | AJ62: 否 | AK62: 否 | AL62: 否 | AM62: 否 | AN62: 否 | AO62: 否 | AP62: 否 | AQ62: 是 | AR62: 是 | AS62: 是 | AT62: 否 | AU62: 否 | AV62: 否 | AW62: 否 | AX62: 否 | AY62: 否 | AZ62: 否 | BA62: 无 | BB62: 无 | BC62: 无 | BD62: 无 | BE62: 否 | BF62: 否 | BG62: 否 | BH62: 是 | BI62: 是 | BJ62: 否 | BK62: 12342.2 | BL62: 536.1 | BM62: 137.2
A63: 59 | B63: 都江堰建业安防火门科技有限公司 | C63: 91510181790015695H | D63: 金属制品业 | E63: 3312 | F63: 都江堰市经济开发区龙翔路6号 | G63: 青城山旅游装备产业功能区 | H63: 1055.9 | I63: 4.79 | J63: 1747.43 | K63: -53.49 | L63: 2244.65 | M63: -5.2 | N63: 8.25 | O63: 127.54 | P63: 112.25 | Q63: 55 | R63: 50 | S63: 0 | T63: 2539.42 | U63: 1057.58 | V63: 否 | W63: -0.232 | X63: 是 | Y63: 无 | Z63: 否 | AA63: 否 | AB63: 否 | AC63: 否 | AD63: 否 | AE63: 否 | AF63: 否 | AG63: 否 | AH63: 46.97% | AI63: 否 | AJ63: 否 | AK63: 否 | AL63: 否 | AM63: 否 | AN63: 是 | AO63: 是 | AP63: 否 | AQ63: 否 | AR63: 否 | AS63: 是 | AT63: 否 | AU63: 否 | AV63: 否 | AW63: 否 | AX63: 否 | AY63: 是 | AZ63: 否 | BA63: 无 | BB63: 无 | BC63: 无 | BD63: 1 | BE63: 否 | BF63: 否 | BG63: 否 | BH63: 否 | BI63: 否 | BJ63: 否 | BK63: 2244.65 | BL63: -5.2 | BM63: 127.54
A64: 60 | B64: 都江堰市云艺钙业有限责任公司 | C64: 91510181621871896J | D64: 其他制造业 | E64: 3099 | F64: 都江堰市经开区泰兴大道15号 | G64: 经开区 | H64: 4948 | I64: 87 | J64: 4408 | K64: 197 | L64: 4082 | M64: 206 | N64: 70 | O64: 349 | P64: 26.7 | Q64: 99 | R64: 0.099 | S64: 2.98 | T64: 4827 | U64: 218 | V64: 是 | W64: 5.047 | X64: 否 | Y64: 是 | Z64: 否 | AA64: 否 | AB64: 否 | AC64: 否 | AD64: 否 | AE64: 否 | AF64: 否 | AG64: 否 | AH64: -9.15% | AI64: 否 | AJ64: 否 | AK64: 否 | AL64: 否 | AM64: 否 | AN64: 否 | AO64: 是 | AP64: 否 | AQ64: 否 | AR64: 否 | AS64: 否 | AT64: 否 | AU64: 否 | AV64: 是 | AW64: 否 | AX64: 是 | AY64: 是 | AZ64: 是 | BA64: 无 | BB64: 无 | BC64: 无 | BD64: 1 | BE64: 否 | BF64: 否 | BG64: 否 | BH64: 是 | BI64: 否 | BJ64: 是 | BK64: 4082 | BL64: 206 | BM64: 349
A65: 61 | B65: 成都精容电子有限公司 | C65: 915101816721755405 | D65: 其他制造业 | E65: 3822 | F65: 四川成都都江堰经济开发区九鼎大道 | G65: 都江堰经济开发区 | H65: 2154 | I65: 12 | J65: 2290 | K65: 275 | L65: 2698 | M65: 331 | N65: 3 | O65: 114 | P65: 100 | Q65: 46 | R65: 115 | S65: 0 | T65: 2578 | U65: 936 | V65: 是 | W65: 12.268 | X65: 否 | Y65: 是 | Z65: 否 | AA65: 否 | AB65: 否 | AC65: 否 | AD65: 否 | AE65: 否 | AF65: 否 | AG65: 否 | AH65: 12.07% | AI65: 否 | AJ65: 否 | AK65: 否 | AL65: 否 | AM65: 否 | AN65: 否 | AO65: 否 | AP65: 否 | AQ65: 否 | AR65: 否 | AS65: 是 | AT65: 否 | AU65: 否 | AV65: 是 | AW65: 否 | AX65: 是 | AY65: 是 | AZ65: 否 | BA65: 无 | BB65: 无 | BC65: 无 | BD65: 4 | BE65: 否 | BF65: 否 | BG65: 否 | BH65: 否 | BI65: 否 | BJ65: 否 | BK65: 2698 | BL65: 331 | BM65: 114
A66: 62 | B66: 成都科力达包装有限公司 | C66: 91510181556409960M | D66: 其他制造业 | E66: 291 | F66: 都江堰市经济开发区 | G66: 蒲阳镇经济开发区泰兴大道 | H66: 2743 | I66: 72 | J66: 3409 | K66: 89 | L66: 3388 | M66: 86 | N66: 12 | O66: 109 | P66: 0 | Q66: 60 | R66: 315.94 | S66: 0 | T66: 2549 | U66: 2009 | V66: 是 | W66: 2.538 | X66: 否 | Y66: 无 | Z66: 否 | AA66: 否 | AB66: 否 | AC66: 否 | AD66: 否 | AE66: 否 | AF66: 否 | AG66: 否 | AH66: 11.83% | AI66: 否 | AJ66: 否 | AK66: 否 | AL66: 否 | AM66: 否 | AN66: 否 | AO66: 否 | AP66: 否 | AQ66: 否 | AR66: 否 | AS66: 否 | AT66: 否 | AU66: 否 | AV66: 否 | AW66: 否 | AX66: 是 | AY66: 是 | AZ66: 否 | BA66: 无 | BB66: 无 | BC66: 无 | BD66: 2 | BE66: 否 | BF66: 否 | BG66: 否 | BH66: 否 | BI66: 否 | BJ66: 否 | BK66: 3388 | BL66: 86 | BM66: 109
A67: 63 | B67: 成都雪国高榕生物科技有限公司 | C67: 91510100693653740F | D67: 农业 | E67: 142 | F67: 四川省成都市都江堰市经济开发区泰兴大道36号 | G67: 都江堰经济开发区 | H67: 8831.98 | I67: 833.26 | J67: 8738.64 | K67: 1317.28 | L67: 9414.59 | M67: 2335.46 | N67: 36 | O67: 98.4 | P67: 0 | Q67: 230 | R67: 1899.86 | S67: 0 | T67: 18071.78 | U67: 5112.64 | V67: 是 | W67: 24.807 | X67: 否 | Y67: 是 | Z67: 否 | AA67: 否 | AB67: 否 | AC67: 否 | AD67: 否 | AE67: 否 | AF67: 否 | AG67: 否 | AH67: 3.34% | AI67: 否 | AJ67: 否 | AK67: 否 | AL67: 3.97 | AM67: 否 | AN67: 否 | AO67: 是 | AP67: 否 | AQ67: 否 | AR67: 否 | AS67: 否 | AT67: 否 | AU67: 否 | AV67: 是 | AW67: 否 | AX67: 是 | AY67: 是 | AZ67: 否 | BA67: 无 | BB67: 无 | BC67: 无 | BD67: 3 | BE67: 是 | BF67: 否 | BG67: 否 | BH67: 否 | BI67: 否 | BJ67: 否 | BK67: 9414.59 | BL67: 2335.46 | BM67: 98.4
A68: 64 | B68: 都江堰市建星机械有限公司 | C68: 915101812027638075 | D68: 金属制品业 | E68: 3391 | F68: 四川省成都市都江堰市青城山镇泊江社区五组 | G68: 青城山镇 | H68: 3768 | I68: 79 | J68: 4399 | K68: 103 | L68: 4588 | M68: 93 | N68: 20 | O68: 284 | P68: 0 | Q68: 131 | R68: 1194.31 | S68: 2.91 | T68: 1358 | U68: 1018 | V68: 是 | W68: 2.027 | X68: 否 | Y68: 是 | Z68: 否 | AA68: 否 | AB68: 否 | AC68: 是 | AD68: 否 | AE68: 否 | AF68: 否 | AG68: 否 | AH68: 10.52% | AI68: 否 | AJ68: 否 | AK68: 否 | AL68: 否 | AM68: 否 | AN68: 否 | AO68: 否 | AP68: 否 | AQ68: 否 | AR68: 否 | AS68: 否 | AT68: 否 | AU68: 否 | AV68: 是 | AW68: 否 | AX68: 否 | AY68: 是 | AZ68: 否 | BA68: 无 | BB68: 无 | BC68: 无 | BD68: 3 | BE68: 否 | BF68: 否 | BG68: 否 | BH68: 否 | BI68: 否 | BJ68: 否 | BK68: 4588 | BL68: 93 | BM68: 284
A69: 65 | B69: 都江堰盛卉钢构有限公司 | C69: 91510181684552091L | D69: 其他制造业 | E69: 4840 | F69: 都江堰市蒲阳工业园区金藤大道4号 | G69: 蒲阳工业园区 | H69: 1916.2 | I69: 7.46 | J69: 3455.3 | K69: 36.52 | L69: 2711.8 | M69: -21.19 | N69: 30 | O69: 95.2 | P69: 0 | Q69: 65 | R69: 51.62 | S69: 0 | T69: 4900 | U69: 4308 | V69: 否 | W69: =M69/L69*100 -> -0.781 | X69: 否 | Y69: 是 | Z69: 否 | AA69: 否 | AB69: 是 | AC69: 是 | AD69: 否 | AE69: 否 | AF69: 否 | AG69: =IF(L69>10000,"是","否") -> 否 | AH69: =(L69/J69+J69/H69)*0.5-1 -> 29.40% | AI69: 否 | AJ69: 否 | AK69: 否 | AL69: 否 | AM69: 否 | AN69: 否 | AO69: 否 | AP69: 否 | AQ69: 否 | AR69: 否 | AS69: 否 | AT69: 否 | AU69: 否 | AV69: 否 | AW69: 否 | AX69: 否 | AY69: 否 | AZ69: 否 | BA69: 无 | BB69: 无 | BC69: 无 | BD69: 无 | BE69: 否 | BF69: 否 | BG69: 否 | BH69: 否 | BI69: 否 | BJ69: 否 | BK69: 2711.8 | BL69: -21.19 | BM69: 95.2
A70: 66 | B70: 四川德普铝业科技有限公司 | C70: 915101816771643811 | D70: 制造业 | E70: 3252 | F70: 四川省都江堰市经济开发区龙翔路2号 | G70: 都江堰市经济开发区 | H70: 6429 | I70: -108 | J70: 6243.86 | K70: -140.1 | L70: 6487.7 | M70: 8.56 | N70: 66.58 | O70: 89.748 | P70: 14.728 | Q70: 98 | R70: 709.37 | S70: 0 | T70: 13125.36 | U70: 14119.31 | V70: 否 | W70: 0.132 | X70: 否 | Y70: 无 | Z70: 否 | AA70: 否 | AB70: 否 | AC70: 是 | AD70: 是 | AE70: 否 | AF70: 国家级 | AG70: 否 | AH70: 0.51% | AI70: 是 | AJ70: 否 | AK70: 否 | AL70: 否 | AM70: 是 | AN70: 是 | AO70: 否 | AP70: 否 | AQ70: 否 | AR70: 否 | AS70: 是 | AT70: 否 | AU70: 否 | AV70: 是 | AW70: 否 | AX70: 是 | AY70: 是 | AZ70: 否 | BA70: 无 | BB70: 无 | BC70: 无 | BD70: 1 | BE70: 否 | BF70: 否 | BG70: 是 | BH70: 是 | BI70: 是 | BJ70: 是 | BK70: 6487.7 | BL70: 8.56 | BM70: 89.748
A71: 67 | B71: 都江堰铮达商品混凝土有限公司 | C71: 915101816743011335 | D71: 其他制造业 | E71: 3021 | F71: 都江堰经济开发区金江村四组 | G71: 奎光塔街道办 | H71: 5103.3 | I71: 245.01 | J71: 6323.78 | K71: 263.68 | L71: 8343.47 | M71: 300.91 | N71: 13.3 | O71: 498 | P71: 0 | Q71: 37 | R71: 44.15 | S71: 6 | T71: 6001.49 | U71: 5437.25 | V71: 是 | W71: 3.607 | X71: 否 | Y71: 无 | Z71: 否 | AA71: 否 | AB71: 否 | AC71: 是 | AD71: 否 | AE71: 否 | AF71: 否 | AG71: 否 | AH71: 27.93% | AI71: 否 | AJ71: 否 | AK71: 否 | AL71: 否 | AM71: 否 | AN71: 否 | AO71: 否 | AP71: 否 | AQ71: 否 | AR71: 否 | AS71: 否 | AT71: 否 | AU71: 否 | AV71: 否 | AW71: 否 | AX71: 否 | AY71: 否 | AZ71: 否 | BA71: 无 | BB71: 无 | BC71: 无 | BD71: 3 | BE71: 否 | BF71: 否 | BG71: 否 | BH71: 否 | BI71: 否 | BJ71: 否 | BK71: 8343.47 | BL71: 300.91 | BM71: 498
A72: 68 | B72: 四川恒鑫丽泰新材料科技有限公司 | C72: 91510181327428615G | D72: 塑料制品 | E72: 塑料制品 | F72: 四川省成都市都江堰市蒲阳镇经济开发区金腾大道11号 | G72: 蒲阳工业园区 | H72: 2757 | I72: -14 | J72: 3226 | K72: -9 | L72: 2634 | M72: 51 | N72: 11.8 | O72: 82 | P72: 0 | Q72: 36 | R72: =1353656*0.1229 -> 166364.3224 | S72: 0 | T72: 13221689.19 | U72: 12306555.73 | V72: 是 | W72: 1.936 | X72: 否 | Y72: 无 | Z72: 否 | AA72: 否 | AB72: 是 | AC72: 否 | AD72: 否 | AE72: 否 | AF72: 否 | AG72: 否 | AH72: -0.67% | AI72: 否 | AJ72: 否 | AK72: 否 | AL72: 否 | AM72: 否 | AN72: 否 | AO72: 否 | AP72: 否 | AQ72: 否 | AR72: 否 | AS72: 否 | AT72: 否 | AU72: 否 | AV72: 否 | AW72: 否 | AX72: 是 | AY72: 是 | AZ72: 否 | BA72: 无 | BB72: 无 | BC72: 无 | BD72: 无 | BE72: 否 | BF72: 否 | BG72: 否 | BH72: 否 | BI72: 否 | BJ72: 否 | BK72: 2634 | BL72: 51 | BM72: 82
A73: 69 | B73: 四川传奇食品有限公司 | C73: 91510181574614693H | D73: 其他制造业 | E73: 1371 | F73: 四川省成都市都江堰市都江堰经济开发区 | G73: 浦阳街道 | H73: 2176 | I73: 17.8 | J73: 2179 | K73: 49.9 | L73: 2050 | M73: 48.9 | N73: 4 | O73: 78.5 | P73: 5 | Q73: 41 | R73: 143.55 | S73: 0 | T73: 602 | U73: 343 | V73: 是 | W73: 2.385 | X73: 否 | Y73: 是 | Z73: 否 | AA73: 否 | AB73: 否 | AC73: 否 | AD73: 否 | AE73: 否 | AF73: 否 | AG73: 否 | AH73: -2.89% | AI73: 否 | AJ73: 否 | AK73: 否 | AL73: 否 | AM73: 否 | AN73: 否 | AO73: 否 | AP73: 否 | AQ73: 否 | AR73: 否 | AS73: 否 | AT73: 否 | AU73: 否 | AV73: 否 | AW73: 否 | AX73: 否 | AY73: 否 | AZ73: 否 | BA73: 无 | BB73: 无 | BC73: 无 | BD73: 1 | BE73: 否 | BF73: 否 | BG73: 否 | BH73: 否 | BI73: 否 | BJ73: 否 | BK73: 2050 | BL73: 48.9 | BM73: 78.5
A74: 70 | B74: 都江堰市天兴硅业有限责任公司 | C74: 9.151018167e+17 | D74: 其他制造业 | E74: 321 | F74: 都江堰经济开发区拉法基大道13号 | G74: 蒲阳工业园区 | H74: 17869 | I74: 19 | J74: 11020 | K74: 45 | L74: 18550 | M74: 69 | N74: 10 | O74: 77 | P74: 27 | Q74: 32 | R74: 35.66 | S74: 0 | T74: 4900 | U74: 4308 | V74: 是 | W74: 0.372 | X74: 否 | Y74: 是 | Z74: 否 | AA74: 否 | AB74: 否 | AC74: 是 | AD74: 否 | AE74: 否 | AF74: 否 | AG74: 是 | AH74: 15.00% | AI74: 否 | AJ74: 否 | AK74: 否 | AL74: 否 | AM74: 否 | AN74: 否 | AO74: 否 | AP74: 否 | AQ74: 否 | AR74: 否 | AS74: 是 | AT74: 否 | AU74: 否 | AV74: 否 | AW74: 否 | AX74: 是 | AY74: 否 | AZ74: 否 | BA74: 无 | BB74: 无 | BC74: 无 | BD74: 3 | BE74: 否 | BF74: 否 | BG74: 是 | BH74: 否 | BI74: 是 | BJ74: 否 | BK74: 18550 | BL74: 69 | BM74: 77
A75: 71 | B75: 成都市乐的家居有限公司 | C75: 91510181677171389U | D75: 家具制造业 | E75: 2110 | F75: 四川省成都市四川都江堰蒲阳镇经济开发区团结路32号 | G75: 蒲阳镇经济开发区 | H75: 11461 | I75: 432 | J75: 17720 | K75: 431 | L75: 17621 | M75: 342 | N75: 103 | O75: 757 | P75: 120 | Q75: 493 | R75: 295 | S75: 9.98 | T75: 12172 | U75: 7704 | V75: 是 | W75: 1.941 | X75: 否 | Y75: 是 | Z75: 否 | AA75: 否 | AB75: 否 | AC75: 是 | AD75: 否 | AE75: 否 | AF75: 否 | AG75: 是 | AH75: 27.03% | AI75: 否 | AJ75: 否 | AK75: 否 | AL75: 否 | AM75: 否 | AN75: 否 | AO75: 是 | AP75: 是 | AQ75: 否 | AR75: 否 | AS75: 否 | AT75: 否 | AU75: 否 | AV75: 否 | AW75: 否 | AX75: 是 | AY75: 是 | AZ75: 否 | BA75: 是 | BB75: 无 | BC75: 无 | BD75: 2 | BE75: 否 | BF75: 否 | BG75: 否 | BH75: 否 | BI75: 否 | BJ75: 否 | BK75: 17621 | BL75: 342 | BM75: 757
A76: 72 | B76: 四川纽赛特工业机器人制造有限公司 | C76: 91510181MA61R8DA29 | D76: 制造业 | E76: 制造业 | F76: 都江堰市经济开发区同心路8号 | G76: 青城山旅游装备工业园 | H76: 1016.29 | I76: 36.25 | J76: 1209.7 | K76: 68.06 | L76: 2595.44 | M76: 74.88 | N76: 4.5 | O76: 73.68 | P76: 132.5 | Q76: 44 | R76: 13.52 | S76: 0 | T76: 1353.51 | U76: 893.76 | V76: 是 | W76: 2.885 | X76: 否 | Y76: 是 | Z76: 否 | AA76: 否 | AB76: 是 | AC76: 是 | AD76: 否 | AE76: 否 | AF76: 否 | AG76: 否 | AH76: 66.79% | AI76: 否 | AJ76: 否 | AK76: 否 | AL76: 否 | AM76: 否 | AN76: 是 | AO76: 否 | AP76: 否 | AQ76: 否 | AR76: 是 | AS76: 是 | AT76: 否 | AU76: 否 | AV76: 否 | AW76: 否 | AX76: 否 | AY76: 否 | AZ76: 否 | BA76: 无 | BB76: 无 | BC76: 无 | BD76: 1 | BE76: 否 | BF76: 否 | BG76: 否 | BH76: 否 | BI76: 否 | BJ76: 否 | BK76: 2595.44 | BL76: 74.88 | BM76: 73.68
A77: 73 | B77: 成都市喜币亿光学仪器有限公司 | C77: 91510181064348866L | D77: 制造业 | E77: 制造业 | F77: 都江堰市蒲阳镇堰华路615号中小企业园区7-1 | G77: 青城山旅游装备产业园 | H77: 1449.71 | I77: 16.21 | J77: 2276.61 | K77: -52 | L77: 2149.53 | M77: -60.74 | N77: 2052.64 | O77: 72.84 | P77: 0 | Q77: 123 | R77: 199 | S77: 0 | T77: 1781.11 | U77: 1166.78 | V77: 否 | W77: -2.826 | X77: 是 | Y77: 无 | Z77: 否 | AA77: 否 | AB77: 是 | AC77: 是 | AD77: 否 | AE77: 否 | AF77: 否 | AG77: 否 | AH77: 25.73% | AI77: 否 | AJ77: 否 | AK77: 否 | AL77: 否 | AM77: 否 | AN77: 否 | AO77: 否 | AP77: 否 | AQ77: 否 | AR77: 否 | AS77: 否 | AT77: 否 | AU77: 否 | AV77: 是 | AW77: 否 | AX77: 是 | AY77: 否 | AZ77: 否 | BA77: 无 | BB77: 无 | BC77: 无 | BD77: 2 | BE77: 否 | BF77: 否 | BG77: 否 | BH77: 否 | BI77: 否 | BJ77: 否 | BK77: 2149.53 | BL77: -60.74 | BM77: 72.84
A78: 74 | B78: 四川鑫福石油化工设备制造有限责任公司 | C78: 91510181MA61UFXF6P | D78: 金属制品业 | E78: 3333 | F78: 四川省都江堰市经济开发区堰华路609号 | G78: 都江堰经济开发区 | H78: 3632.73 | I78: 37.47 | J78: 8601.64 | K78: 117.17 | L78: 8911.77 | M78: 472.31 | N78: 20.72 | O78: 71.5 | P78: 445 | Q78: 34 | R78: 56.19 | S78: 0 | T78: 9381.15 | U78: 6471.68 | V78: 是 | W78: 5.300 | X78: 否 | Y78: 无 | Z78: 否 | AA78: 否 | AB78: 是 | AC78: 是 | AD78: 否 | AE78: 否 | AF78: 否 | AG78: 否 | AH78: 70.19% | AI78: 否 | AJ78: 否 | AK78: 否 | AL78: 否 | AM78: 否 | AN78: 是 | AO78: 否 | AP78: 否 | AQ78: 否 | AR78: 否 | AS78: 是 | AT78: 否 | AU78: 否 | AV78: 否 | AW78: 否 | AX78: 是 | AY78: 是 | AZ78: 否 | BA78: 无 | BB78: 无 | BC78: 无 | BD78: 3 | BE78: 否 | BF78: 否 | BG78: 否 | BH78: 否 | BI78: 否 | BJ78: 否 | BK78: 8911.77 | BL78: 472.31 | BM78: 71.5
A79: 75 | B79: 成都格林斯奇机电设备有限公司 | C79: 91510181780124927J | D79: 通用设备制造业 | E79: 3444 | F79: 都江堰市经济开发区上阳街404号 | G79: 青城山旅游装备功能区 | H79: 2384.34 | I79: 10.14 | J79: 2031.26 | K79: 5.7 | L79: 2535.26 | M79: 13.8 | N79: 3 | O79: 69.34 | P79: 130 | Q79: 38 | R79: 55.83 | S79: 0 | T79: 2360.4 | U79: 1320.5 | V79: 是 | W79: 0.544 | X79: 否 | Y79: 无 | Z79: 是 | AA79: 否 | AB79: 否 | AC79: 否 | AD79: 否 | AE79: 否 | AF79: 否 | AG79: 否 | AH79: 5.00% | AI79: 否 | AJ79: 否 | AK79: 否 | AL79: 否 | AM79: 否 | AN79: 是 | AO79: 否 | AP79: 否 | AQ79: 否 | AR79: 否 | AS79: 是 | AT79: 否 | AU79: 否 | AV79: 否 | AW79: 否 | AX79: 否 | AY79: 是 | AZ79: 否 | BA79: 无 | BB79: 无 | BC79: 无 | BD79: 无 | BE79: 否 | BF79: 否 | BG79: 否 | BH79: 是 | BI79: 否 | BJ79: 否 | BK79: 2535.26 | BL79: 13.8 | BM79: 69.34
A80: 76 | B80: 四川同正堂中药饮片有限公司 | C80: 91510181MA61REGN48 | D80: 医药制造业 | E80: 2730 | F80: 四川省成都市都江堰市四川都江堰经济开发区堰华路618号8栋2层 | G80: 青城山旅游装备产业功能区 | H80: 8293 | I80: 422 | J80: 7733 | K80: 458 | L80: 6632 | M80: -40 | N80: 4.845 | O80: 65 | P80: 308 | Q80: 20 | R80: 4.42 | S80: 0 | T80: 3393 | U80: 2324 | V80: 否 | W80: -0.603 | X80: 否 | Y80: 无 | Z80: 否 | AA80: 否 | AB80: 是 | AC80: 是 | AD80: 否 | AE80: 否 | AF80: 否 | AG80: 否 | AH80: -10.50% | AI80: 否 | AJ80: 否 | AK80: 否 | AL80: 否 | AM80: 否 | AN80: 是 | AO80: 否 | AP80: 否 | AQ80: 否 | AR80: 否 | AS80: 是 | AT80: 否 | AU80: 否 | AV80: 否 | AW80: 否 | AX80: 否 | AY80: 否 | AZ80: 否 | BA80: 无 | BB80: 无 | BC80: 无 | BD80: 无 | BE80: 否 | BF80: 否 | BG80: 否 | BH80: 否 | BI80: 否 | BJ80: 否 | BK80: 6632 | BL80: -40 | BM80: 65
A81: 77 | B81: 都江堰华泰伟业食品有限责任公司 | C81: 91510181396147040T | D81: 其他制造业 | E81: 1524 | F81: 都江堰市都江堰经济开发区金凤路177号 | G81: 都江堰经济开发区 | H81: 8312 | I81: 125 | J81: 5175 | K81: 75 | L81: 3933 | M81: 45 | N81: 27 | O81: 63 | P81: 10 | Q81: 35 | R81: 689 | S81: 0 | T81: 1258 | U81: 431 | V81: 是 | W81: 1.144 | X81: 否 | Y81: 是 | Z81: 否 | AA81: 否 | AB81: 否 | AC81: 否 | AD81: 否 | AE81: 否 | AF81: 否 | AG81: 否 | AH81: -30.87% | AI81: 否 | AJ81: 否 | AK81: 否 | AL81: 否 | AM81: 否 | AN81: 否 | AO81: 否 | AP81: 否 | AQ81: 否 | AR81: 否 | AS81: 否 | AT81: 否 | AU81: 否 | AV81: 是 | AW81: 否 | AX81: 否 | AY81: 否 | AZ81: 否 | BA81: 无 | BB81: 无 | BC81: 无 | BD81: 无 | BE81: 否 | BF81: 否 | BG81: 否 | BH81: 否 | BI81: 否 | BJ81: 否 | BK81: 3933 | BL81: 45 | BM81: 63
A82: 78 | B82: 四川京都龙泰科技有限公司 | C82: 9151018158757060xc | D82: 其他制造业 | E82: 398 | F82: 成都市四川都江堰经开区干河子路395号 | G82: 青城山旅游装备产业功能区 | H82: 6516 | I82: 1145 | J82: 3671 | K82: -2330 | L82: 5206 | M82: -956 | N82: 18 | O82: 62 | P82: 535 | Q82: 198 | R82: 93.11 | S82: 0 | T82: 15288.5 | U82: 5182 | V82: 否 | W82: -18.363 | X82: 否 | Y82: 是 | Z82: 否 | AA82: 是 | AB82: 是 | AC82: 是 | AD82: 是 | AE82: 否 | AF82: 否 | AG82: 否 | AH82: -0.92% | AI82: 否 | AJ82: 否 | AK82: 是 | AL82: 否 | AM82: 否 | AN82: 是 | AO82: 否 | AP82: 否 | AQ82: 否 | AR82: 是 | AS82: 是 | AT82: 否 | AU82: 否 | AV82: 是 | AW82: 否 | AX82: 是 | AY82: 是 | AZ82: 否 | BA82: 无 | BB82: 无 | BC82: 无 | BD82: 3 | BE82: 否 | BF82: 否 | BG82: 否 | BH82: 否 | BI82: 否 | BJ82: 否 | BK82: 5206 | BL82: -956 | BM82: 62
A83: 79 | B83: 四川宏康源药业有限公司 | C83: 91510181MA61T9YH7F | D83: 医药制造业 | E83: 273 | F83: 都江堰市泰兴大道38号10栋1-2层 | G83: 四川都江堰经济开发区 | H83: 17689 | I83: 132 | J83: 12197 | K83: 110 | L83: 4590 | M83: -51 | N83: 10 | O83: 61 | P83: 0 | Q83: 58 | R83: 23.11 | S83: 0 | T83: 5622 | U83: 4397 | V83: 否 | W83: -1.111 | X83: 否 | Y83: 是 | Z83: 否 | AA83: 否 | AB83: 是 | AC83: 是 | AD83: 否 | AE83: 否 | AF83: 否 | AG83: 否 | AH83: -46.71% | AI83: 否 | AJ83: 否 | AK83: 否 | AL83: 否 | AM83: 否 | AN83: 否 | AO83: 否 | AP83: 否 | AQ83: 否 | AR83: 否 | AS83: 否 | AT83: 否 | AU83: 否 | AV83: 否 | AW83: 否 | AX83: 否 | AY83: 否 | AZ83: 否 | BA83: 无 | BB83: 无 | BC83: 无 | BD83: 无 | BE83: 否 | BF83: 否 | BG83: 否 | BH83: 否 | BI83: 否 | BJ83: 否 | BK83: 4590 | BL83: -51 | BM83: 61
A84: 80 | B84: 都江堰市钧福塑料有限责任公司 | C84: 91510181794936010E | D84: 其他制造业 | E84: 291 | F84: 都江堰市经济开发区上阳街412号 | G84: 蒲阳街道 | H84: 3434 | I84: -251 | J84: 1631 | K84: -135 | L84: 2827 | M84: -105 | N84: 95 | O84: 58 | P84: 0 | Q84: 27 | R84: 838.11 | S84: 0 | T84: 9821 | U84: 3654 | V84: 否 | W84: -3.714 | X84: 是 | Y84: 无 | Z84: 否 | AA84: 否 | AB84: 否 | AC84: 否 | AD84: 否 | AE84: 否 | AF84: 否 | AG84: 否 | AH84: 10.41% | AI84: 否 | AJ84: 否 | AK84: 否 | AL84: 否 | AM84: 否 | AN84: 否 | AO84: 否 | AP84: 否 | AQ84: 否 | AR84: 否 | AS84: 否 | AT84: 否 | AU84: 否 | AV84: 否 | AW84: 否 | AX84: 否 | AY84: 否 | AZ84: 否 | BA84: 无 | BB84: 无 | BC84: 无 | BD84: 3 | BE84: 否 | BF84: 否 | BG84: 否 | BH84: 否 | BI84: 否 | BJ84: 否 | BK84: 2827 | BL84: -105 | BM84: 58
A85: 81 | B85: 四川翼方中药饮片有限公司 | C85: 91510181MA6CCB9Q4L | D85: 医药制造业 | E85: 2730 | F85: 四川省成都市都江堰市石羊镇竹瓦社区9组66号 | G85: 竹瓦社区 | H85: 0 | I85: 0 | J85: 3008.2 | K85: -78.3 | L85: 5425.8 | M85: 354.7 | N85: 38 | O85: 56.35 | P85: 0 | Q85: 67 | R85: 28.27 | S85: 0 | T85: 2890.79 | U85: 1232.5 | V85: 否 | W85: 6.537 | X85: 否 | Y85: 是 | Z85: 否 | AA85: 否 | AB85: 否 | AC85: 是 | AD85: 否 | AE85: 否 | AF85: 否 | AG85: 否 | AH85: =(L85/J85)-1 -> 80.37% | AI85: 否 | AJ85: 否 | AK85: 否 | AL85: 2000 | AM85: 否 | AN85: 否 | AO85: 否 | AP85: 否 | AQ85: 否 | AR85: 否 | AS85: 是 | AT85: 否 | AU85: 否 | AV85: 否 | AW85: 否 | AX85: 是 | AY85: 是 | AZ85: 否 | BA85: 无 | BB85: 无 | BC85: 无 | BD85: 3 | BE85: 否 | BF85: 否 | BG85: 否 | BH85: 是 | BI85: 否 | BJ85: 否 | BK85: 5425.8 | BL85: 354.7 | BM85: 56.35
A86: 82 | B86: 成都兴林纺织有限公司 | C86: 915101817686355640 | D86: 纺织业 | E86: 1711 | F86: 成都市都江堰胥家镇 | G86: 实践社区三组 | H86: 2831.8 | I86: 35.2 | J86: 3666.1 | K86: 27 | L86: 3586.6 | M86: 54.9 | N86: 12 | O86: 52.4 | P86: 0 | Q86: 59 | R86: 883.65 | S86: 0 | T86: 2163.6 | U86: 1637 | V86: 是 | W86: 1.531 | X86: 否 | Y86: 是 | Z86: 否 | AA86: 否 | AB86: 否 | AC86: 否 | AD86: 否 | AE86: 否 | AF86: 否 | AG86: 否 | AH86: =(L86/J86+J86/H86)*0.5-1 -> 13.65% | AI86: 否 | AJ86: 否 | AK86: 否 | AL86: 否 | AM86: 否 | AN86: 否 | AO86: 否 | AP86: 否 | AQ86: 否 | AR86: 否 | AS86: 否 | AT86: 否 | AU86: 否 | AV86: 否 | AW86: 否 | AX86: 否 | AY86: 否 | AZ86: 否 | BA86: 无 | BB86: 无 | BC86: 无 | BD86: 无 | BE86: 否 | BF86: 否 | BG86: 否 | BH86: 否 | BI86: 否 | BJ86: 否 | BK86: 3586.6 | BL86: 54.9 | BM86: 52.4
A87: 83 | B87: 四川蓉开电气成套设备有限公司 | C87: 91510181331962108R | D87: 其他制造业 | E87: 3811 | F87: 四川省成都市都江堰市四川都江堰经济开发区拉法基大道 | G87: 青城山旅游装备园区 | H87: 1666 | I87: 14 | J87: 2460 | K87: 41 | L87: 2495 | M87: 124 | N87: 4.5 | O87: 51 | P87: 94 | Q87: 23 | R87: 0 | S87: 0 | T87: 1212 | U87: 872 | V87: 是 | W87: 4.970 | X87: 否 | Y87: 无 | Z87: 否 | AA87: 否 | AB87: 是 | AC87: 是 | AD87: 否 | AE87: 否 | AF87: 否 | AG87: 否 | AH87: 24.54% | AI87: 否 | AJ87: 否 | AK87: 否 | AL87: 否 | AM87: 否 | AN87: 是 | AO87: 否 | AP87: 否 | AQ87: 否 | AR87: 否 | AS87: 是 | AT87: 否 | AU87: 否 | AV87: 否 | AW87: 否 | AX87: 否 | AY87: 否 | AZ87: 否 | BA87: 无 | BB87: 无 | BC87: 无 | BD87: 1 | BE87: 否 | BF87: 否 | BG87: 否 | BH87: 否 | BI87: 否 | BJ87: 否 | BK87: 2495 | BL87: 124 | BM87: 51
A88: 84 | B88: 成都市跃民药业有限公司 | C88: 91510181064341760R | D88: 医药制造业 | E88: 2730 | F88: 都江堰经济开发区金凤路360号 | G88: 青城山旅游装备产业功能区 | H88: 4609.81 | I88: -141.6 | J88: 1083.83 | K88: -295.65 | L88: 3503.49 | M88: -81.32 | N88: 15.126 | O88: 47.29 | P88: 0 | Q88: 4 | R88: 13.69 | S88: 0 | T88: 4851.23 | U88: 4697.08 | V88: 否 | W88: -2.321 | X88: 是 | Y88: 无 | Z88: 否 | AA88: 否 | AB88: 否 | AC88: 是 | AD88: 否 | AE88: 否 | AF88: 否 | AG88: 否 | AH88: 73.38% | AI88: 否 | AJ88: 否 | AK88: 否 | AL88: 500 | AM88: 否 | AN88: 否 | AO88: 否 | AP88: 否 | AQ88: 否 | AR88: 否 | AS88: 否 | AT88: 否 | AU88: 否 | AV88: 否 | AW88: 否 | AX88: 否 | AY88: 是 | AZ88: 否 | BA88: 无 | BB88: 无 | BC88: 无 | BD88: 1 | BE88: 否 | BF88: 否 | BG88: 否 | BH88: 否 | BI88: 否 | BJ88: 否 | BK88: 3503.49 | BL88: -81.32 | BM88: 47.29
A89: 85 | B89: 四川富士鑫电梯有限公司 | C89: 91510181590461631C | D89: 通用设备制造业 | E89: 3435 | F89: 四川省成都市都江堰市四川都江堰经济开发区光泰路9号 | G89: 蒲阳街道办 | H89: 1678.74 | I89: -126.96 | J89: 3168.39 | K89: -7.31 | L89: 2002.15 | M89: -175.35 | N89: 9.59 | O89: 46.66 | P89: 0 | Q89: 38 | R89: 123.63 | S89: 0 | T89: 4052.49 | U89: 2751.58 | V89: 否 | W89: -8.758 | X89: 否 | Y89: 无 | Z89: 否 | AA89: 否 | AB89: 否 | AC89: 是 | AD89: 否 | AE89: 否 | AF89: 否 | AG89: 否 | AH89: 25.96% | AI89: 否 | AJ89: 否 | AK89: 否 | AL89: 否 | AM89: 否 | AN89: 否 | AO89: 否 | AP89: 否 | AQ89: 否 | AR89: 否 | AS89: 是 | AT89: 否 | AU89: 否 | AV89: 否 | AW89: 否 | AX89: 否 | AY89: 否 | AZ89: 否 | BA89: 无 | BB89: 无 | BC89: 无 | BD89: 3 | BE89: 否 | BF89: 否 | BG89: 否 | BH89: 否 | BI89: 否 | BJ89: 否 | BK89: 2002.15 | BL89: -175.35 | BM89: 46.66
A90: 86 | B90: 四川省绿野生物制药有限公司 | C90: 91510000744693022W | D90: 医药制造业 | E90: C2740 | F90: 都江堰市聚源镇新华社区一组 | G90: 新华社区 | H90: 5688 | I90: 360 | J90: 5315 | K90: 72 | L90: 3596 | M90: 0 | N90: 40 | O90: 46 | P90: 0 | Q90: 19 | R90: 93.84 | S90: 0 | T90: 8510 | U90: 3983 | V90: 是 | W90: 0.000 | X90: 否 | Y90: 无 | Z90: 否 | AA90: 否 | AB90: 否 | AC90: 是 | AD90: 否 | AE90: 否 | AF90: 否 | AG90: 否 | AH90: -19.45% | AI90: 否 | AJ90: 否 | AK90: 否 | AL90: 否 | AM90: 否 | AN90: 否 | AO90: 否 | AP90: 否 | AQ90: 否 | AR90: 否 | AS90: 否 | AT90: 否 | AU90: 否 | AV90: 否 | AW90: 否 | AX90: 否 | AY90: 否 | AZ90: 否 | BA90: 无 | BB90: 无 | BC90: 无 | BD90: 无 | BE90: 否 | BF90: 否 | BG90: 否 | BH90: 否 | BI90: 否 | BJ90: 否 | BK90: 3596 | BL90: 0 | BM90: 46
A91: 87 | B91: 都江堰市朝辉门业有限责任公司 | C91: 9151018120275882L | D91: 金属制品业 | E91: 3312 | F91: 都江堰市崇义镇界牌村5组28号 | G91: 都江堰市聚源镇 | H91: 2100 | I91: 60 | J91: 2600 | K91: 80 | L91: 2400 | M91: -18 | N91: 27 | O91: 40 | P91: 4 | Q91: 13 | R91: 118 | S91: 0 | T91: 1600 | U91: 700 | V91: 否 | W91: -0.750 | X91: 否 | Y91: 是 | Z91: 否 | AA91: 否 | AB91: 否 | AC91: 是 | AD91: 否 | AE91: 否 | AF91: 否 | AG91: 否 | AH91: 8.06% | AI91: 否 | AJ91: 否 | AK91: 否 | AL91: 否 | AM91: 否 | AN91: 否 | AO91: 否 | AP91: 否 | AQ91: 否 | AR91: 否 | AS91: 否 | AT91: 否 | AU91: 否 | AV91: 是 | AW91: 否 | AX91: 否 | AY91: 否 | AZ91: 否 | BA91: 无 | BB91: 无 | BC91: 无 | BD91: 无 | BE91: 否 | BF91: 否 | BG91: 是 | BH91: 否 | BI91: 否 | BJ91: 否 | BK91: 2400 | BL91: -18 | BM91: 40
A92: 88 | B92: 都江堰拉法基水泥有限公司 | C92: 91510181710922477L | D92: 其他制造业 | E92: 301 | F92: 都江堰市经开区九鼎大道21号 | G92: 都江堰经济开发区 | H92: 189285 | I92: 63204 | J92: 224367 | K92: 96003 | L92: 197716 | M92: 78238 | N92: 6 | O92: 28551 | P92: 88 | Q92: 474 | R92: 37.5 | S92: 728 | T92: 471190 | U92: 70848 | V92: 是 | W92: 39.571 | X92: 否 | Y92: 是 | Z92: 是 | AA92: 是 | AB92: 是 | AC92: 是 | AD92: 是 | AE92: 否 | AF92: 国家级 | AG92: 是 | AH92: 3.33% | AI92: 否 | AJ92: 否 | AK92: 否 | AL92: 否 | AM92: 否 | AN92: 否 | AO92: 否 | AP92: 是 | AQ92: 否 | AR92: 否 | AS92: 否 | AT92: 否 | AU92: 国家级 | AV92: 是 | AW92: 否 | AX92: 是 | AY92: 是 | AZ92: 是 | BA92: 无 | BB92: 无 | BC92: 无 | BD92: 1 | BE92: 否 | BF92: 是 | BG92: 是 | BH92: 否 | BI92: 否 | BJ92: 是 | BK92: 197716 | BL92: 78238 | BM92: 28551
A93: 89 | B93: 成都市长盛包装制品有限责任公司 | C93: 91510181556447460N | D93: 其他制造业 | E93: 411 | F93: 四川成都都江堰经 济开发区泰兴大道上段上海创业园 | G93: 都江堰蒲阳街道 | H93: 1935 | I93: 20 | J93: 2425 | K93: 12 | L93: 1872 | M93: -27 | N93: 1173 | O93: 34 | P93: 100 | Q93: 28 | R93: 156.08 | S93: 0 | T93: 782 | U93: 660 | V93: 否 | W93: -1.442 | X93: 否 | Y93: 是 | Z93: 否 | AA93: 否 | AB93: 是 | AC93: 是 | AD93: 否 | AE93: 否 | AF93: 否 | AG93: 否 | AH93: 1.26% | AI93: 否 | AJ93: 否 | AK93: 否 | AL93: 否 | AM93: 否 | AN93: 否 | AO93: 否 | AP93: 否 | AQ93: 否 | AR93: 否 | AS93: 是 | AT93: 否 | AU93: 否 | AV93: 否 | AW93: 否 | AX93: 是 | AY93: 是 | AZ93: 否 | BA93: 无 | BB93: 无 | BC93: 无 | BD93: 无 | BE93: 否 | BF93: 否 | BG93: 否 | BH93: 否 | BI93: 否 | BJ93: 否 | BK93: 1872 | BL93: -27 | BM93: 34
A94: 90 | B94: 四川道勤切削工具有限公司 | C94: 91510181MA6C6R7J5W | D94: 金属制品业 | E94: 3321010 | F94: 四川省成都市都江堰市四川都江堰经济开发区金凤路175号 | G94: 都江堰经济开发区 | H94: 825.13 | I94: 63.9 | J94: 1938.89 | K94: 386.24 | L94: 2523.12 | M94: 658.14 | N94: 26 | O94: 28.91 | P94: 143.8 | Q94: 44 | R94: 98.2 | S94: 0 | T94: 3675.14 | U94: 1503.22 | V94: 是 | W94: 26.084 | X94: 否 | Y94: 是 | Z94: 否 | AA94: 否 | AB94: 是 | AC94: 否 | AD94: 否 | AE94: 否 | AF94: 否 | AG94: 否 | AH94: 82.56% | AI94: 否 | AJ94: 否 | AK94: 否 | AL94: 8000 | AM94: 否 | AN94: 是 | AO94: 否 | AP94: 否 | AQ94: 否 | AR94: 否 | AS94: 是 | AT94: 否 | AU94: 否 | AV94: 否 | AW94: 否 | AX94: 是 | AY94: 是 | AZ94: 否 | BA94: 无 | BB94: 无 | BC94: 无 | BD94: 1 | BE94: 否 | BF94: 否 | BG94: 否 | BH94: 是 | BI94: 否 | BJ94: 否 | BK94: 2523.12 | BL94: 658.14 | BM94: 28.91
A95: 91 | B95: 成都汇道堂中药饮片有限责任公司 | C95: 915101815826117243 | D95: 医药制造业 | E95: 2730 | F95: 四川省成都市都江堰市堰华路613号 | G95: 都江堰市中小企业园 | H95: 12170.8 | I95: 230.9 | J95: 8387.3 | K95: 8.5 | L95: 3814.7 | M95: 3.6 | N95: 40 | O95: 26 | P95: 0 | Q95: 21 | R95: 11.91 | S95: 0 | T95: 21645 | U95: 6443 | V95: 是 | W95: 0.094 | X95: 否 | Y95: 是 | Z95: 否 | AA95: 否 | AB95: 否 | AC95: 是 | AD95: 否 | AE95: 否 | AF95: 否 | AG95: 否 | AH95: -42.80% | AI95: 否 | AJ95: 否 | AK95: 否 | AL95: 否 | AM95: 否 | AN95: 否 | AO95: 否 | AP95: 否 | AQ95: 否 | AR95: 否 | AS95: 否 | AT95: 否 | AU95: 否 | AV95: 否 | AW95: 否 | AX95: 否 | AY95: 否 | AZ95: 否 | BA95: 无 | BB95: 无 | BC95: 无 | BD95: 1 | BE95: 否 | BF95: 否 | BG95: 否 | BH95: 否 | BI95: 否 | BJ95: 否 | BK95: 3814.7 | BL95: 3.6 | BM95: 26
A96: 92 | B96: 都江堰百年匠人家具有限公司 | C96: 91510181MA61UNM803 | D96: 家具制造业 | E96: 2100010 | F96: 都江堰市玉堂街道永胜社区8组 | G96: 都江堰市玉堂街道 | H96: 3225 | I96: 445 | J96: 2838 | K96: 4548 | L96: 2665 | M96: 318 | N96: 23 | O96: 26 | P96: 12 | Q96: 38 | R96: 118 | S96: 0 | T96: 4150 | U96: 522 | V96: 是 | W96: 11.932 | X96: 否 | Y96: 是 | Z96: 否 | AA96: 否 | AB96: 否 | AC96: 否 | AD96: 否 | AE96: 否 | AF96: 否 | AG96: 否 | AH96: -9.05% | AI96: 否 | AJ96: 否 | AK96: 否 | AL96: 否 | AM96: 否 | AN96: 否 | AO96: 是 | AP96: 否 | AQ96: 否 | AR96: 否 | AS96: 否 | AT96: 否 | AU96: 否 | AV96: 否 | AW96: 否 | AX96: 是 | AY96: 否 | AZ96: 否 | BA96: 无 | BB96: 无 | BC96: 无 | BD96: 2 | BE96: 否 | BF96: 否 | BG96: 否 | BH96: 否 | BI96: 否 | BJ96: 否 | BK96: 2665 | BL96: 318 | BM96: 26
A97: 93 | B97: 都江堰市中亚有机玻璃有限责任公司 | C97: 91510181621871634T | D97: 其他制造业 | E97: 3062 | F97: 都江堰市天马镇童子山一组 | G97: 童山村 | H97: 3879.6 | I97: 86.3 | J97: 3965.8 | K97: 129.6 | L97: 3567.7 | M97: 38 | N97: 18 | O97: 141.03 | P97: 0 | Q97: 118 | R97: 333.57 | S97: 6.1 | T97: 3310.7 | U97: 642.6 | V97: 是 | W97: 1.065 | X97: 否 | Y97: 是 | Z97: 否 | AA97: 否 | AB97: 否 | AC97: 否 | AD97: 否 | AE97: 否 | AF97: 否 | AG97: 否 | AH97: -3.91% | AI97: 否 | AJ97: 否 | AK97: 否 | AL97: 否 | AM97: 否 | AN97: 否 | AO97: 否 | AP97: 否 | AQ97: 否 | AR97: 否 | AS97: 否 | AT97: 否 | AU97: 否 | AV97: 是 | AW97: 否 | AX97: 否 | AY97: 否 | AZ97: 否 | BA97: 无 | BB97: 无 | BC97: 无 | BD97: 3 | BE97: 否 | BF97: 否 | BG97: 否 | BH97: 否 | BI97: 否 | BJ97: 否 | BK97: 3567.7 | BL97: 38 | BM97: 141.04
A98: 94 | B98: 都江堰清天新材料技术有限责任公司 | C98: 9151018177452545XM | D98: 其他制造业 | E98: 2669 | F98: 四川都江堰市灌温路100号 | G98: 都江堰奎光塔街道办 | H98: 2854 | I98: 54 | J98: 4466 | K98: 38 | L98: 3762 | M98: 147 | N98: 70 | O98: 330 | P98: 30 | Q98: 64 | R98: 1583.29 | S98: 30.4 | T98: 16011 | U98: 9416 | V98: 是 | W98: 3.907 | X98: 否 | Y98: 是 | Z98: 否 | AA98: 否 | AB98: 否 | AC98: 否 | AD98: 否 | AE98: 否 | AF98: 否 | AG98: 否 | AH98: 20.36% | AI98: 否 | AJ98: 否 | AK98: 否 | AL98: 否 | AM98: 否 | AN98: 是 | AO98: 否 | AP98: 否 | AQ98: 否 | AR98: 是 | AS98: 是 | AT98: 否 | AU98: 否 | AV98: 否 | AW98: 否 | AX98: 否 | AY98: 否 | AZ98: 否 | BA98: 无 | BB98: 无 | BC98: 无 | BD98: 3 | BE98: 否 | BF98: 否 | BG98: 是 | BH98: 否 | BI98: 否 | BJ98: 否 | BK98: 3762 | BL98: 147 | BM98: 330
A99: 95 | B99: 成都海成远创科技有限公司 | C99: 91510112MA61U6D602 | D99: 其他制造业 | E99: 3091 | F99: 四川省成都市都江堰市经济开发区 | G99: 蒲阳镇蟠龙社区 | H99: 3908.38 | I99: 42.16 | J99: 6357.9 | K99: -860.2 | L99: 12102.29 | M99: 794.94 | N99: 15.12 | O99: 8.13 | P99: 676.82 | Q99: 106 | R99: 72.76 | S99: 0 | T99: 9517.47 | U99: 3959.04 | V99: 否 | W99: 6.569 | X99: 否 | Y99: 是 | Z99: 是 | AA99: 否 | AB99: 是 | AC99: 否 | AD99: 否 | AE99: 否 | AF99: 否 | AG99: 是 | AH99: 76.51% | AI99: 否 | AJ99: 否 | AK99: 否 | AL99: 否 | AM99: 否 | AN99: 否 | AO99: 否 | AP99: 否 | AQ99: 否 | AR99: 是 | AS99: 是 | AT99: 否 | AU99: 否 | AV99: 是 | AW99: 否 | AX99: 否 | AY99: 是 | AZ99: 否 | BA99: 无 | BB99: 无 | BC99: 无 | BD99: 1 | BE99: 否 | BF99: 否 | BG99: 否 | BH99: 是 | BI99: 否 | BJ99: 否 | BK99: 12102.29 | BL99: 794.94 | BM99: 8.13
A100: 96 | B100: 四川祥恒包装制品有限公司 | C100: 91510181577351497N | D100: 其他制造业 | E100: 2319 | F100: 四川省都江堰市经开区九鼎大道12号 | G100: 蒲阳街道经济开发区 | H100: 13757.52 | I100: -424.5 | J100: 13415.61 | K100: -1247.46 | L100: 15557.52 | M100: 16.4 | N100: 107 | O100: 252.03 | P100: 150 | Q100: 187 | R100: 1262.48 | S100: 54.896 | T100: 7657.81 | U100: 4644.75 | V100: 否 | W100: 0.105 | X100: 否 | Y100: 是 | Z100: 否 | AA100: 否 | AB100: 否 | AC100: 否 | AD100: 否 | AE100: 否 | AF100: 否 | AG100: 是 | AH100: 6.74% | AI100: 否 | AJ100: 否 | AK100: 否 | AL100: 否 | AM100: 否 | AN100: 否 | AO100: 否 | AP100: 否 | AQ100: 否 | AR100: 否 | AS100: 是 | AT100: 否 | AU100: 否 | AV100: 是 | AW100: 否 | AX100: 否 | AY100: 是 | AZ100: 否 | BA100: 无 | BB100: 无 | BC100: 无 | BD100: 3 | BE100: 否 | BF100: 否 | BG100: 否 | BH100: 是 | BI100: 否 | BJ100: 否 | BK100: 15557.52 | BL100: 16.4 | BM100: 252.03
A101: 97 | B101: 都江堰市岷江油脂有限责任公司 | C101: 91510181709260918G | D101: 其他制造业 | E101: 133 | F101: 四川省成都市都江堰市经济开发区上阳街239号 | G101: 都江堰经济开发区 | H101: 1646.49 | I101: -47.85 | J101: 1372.08 | K101: -77.39 | L101: 542.99 | M101: -108.98 | N101: 1200 | O101: 4.53 | P101: 0 | Q101: 22 | R101: 24.58 | S101: 0 | T101: 4869.77 | U101: 3998.62 | V101: 否 | W101: -20.070 | X101: 是 | Y101: 无 | Z101: 否 | AA101: 否 | AB101: 否 | AC101: 否 | AD101: 否 | AE101: 否 | AF101: 否 | AG101: 否 | AH101: -38.55% | AI101: 否 | AJ101: 否 | AK101: 否 | AL101: 否 | AM101: 否 | AN101: 否 | AO101: 是 | AP101: 否 | AQ101: 否 | AR101: 否 | AS101: 否 | AT101: 否 | AU101: 否 | AV101: 否 | AW101: 否 | AX101: 否 | AY101: 否 | AZ101: 否 | BA101: 无 | BB101: 无 | BC101: 无 | BD101: 无 | BE101: 否 | BF101: 否 | BG101: 否 | BH101: 否 | BI101: 否 | BJ101: 否 | BK101: 542.99 | BL101: -108.98 | BM101: 4.53
A102: 98 | B102: 成都承新科技有限公司 | C102: 91510181052515858K | D102: 其他制造业 | E102: 3091 | F102: 四川省成都市都江堰市四川都江堰经济开发区 | G102: 蒲阳镇蟠龙社区 | H102: 12148.74 | I102: -440.38 | J102: 5081.19 | K102: -937.8 | L102: 5303.36 | M102: -581.78 | N102: 48 | O102: 262.47 | P102: 554.9 | Q102: 83 | R102: 4259.36 | S102: 78.84 | T102: 25967.9 | U102: 20007.9 | V102: 否 | W102: -10.970 | X102: 是 | Y102: 是 | Z102: 是 | AA102: 否 | AB102: 是 | AC102: 是 | AD102: 否 | AE102: 否 | AF102: 否 | AG102: 否 | AH102: -26.90% | AI102: 否 | AJ102: 否 | AK102: 否 | AL102: 否 | AM102: 否 | AN102: 是 | AO102: 否 | AP102: 否 | AQ102: 否 | AR102: 是 | AS102: 是 | AT102: 否 | AU102: 否 | AV102: 是 | AW102: 否 | AX102: 否 | AY102: 是 | AZ102: 否 | BA102: 无 | BB102: 无 | BC102: 无 | BD102: 1 | BE102: 否 | BF102: 否 | BG102: 否 | BH102: 否 | BI102: 否 | BJ102: 否 | BK102: 5303.36 | BL102: -581.78 | BM102: 262.47
A103: 99 | B103: 成都兴世伟门业有限公司 | C103: 91510181551092706G | D103: 金属制品业 | E103: 3312 | F103: 都江堰市聚源镇崇义社区界牌村五组29号 | G103: 崇义街道 | H103: 2619 | I103: 21 | J103: 3607 | K103: 28 | L103: 3040 | M103: 33 | N103: 17.54 | O103: 105 | P103: 0 | Q103: 94 | R103: 196.15 | S103: 34.748 | T103: 1844 | U103: 1195 | V103: 是 | W103: 1.086 | X103: 否 | Y103: 是 | Z103: 否 | AA103: 否 | AB103: 否 | AC103: 否 | AD103: 否 | AE103: 否 | AF103: 否 | AG103: 否 | AH103: 11.00% | AI103: 否 | AJ103: 否 | AK103: 否 | AL103: 否 | AM103: 否 | AN103: 否 | AO103: 否 | AP103: 否 | AQ103: 否 | AR103: 否 | AS103: 是 | AT103: 否 | AU103: 否 | AV103: 是 | AW103: 否 | AX103: 否 | AY103: 是 | AZ103: 否 | BA103: 无 | BB103: 无 | BC103: 无 | BD103: 无 | BE103: 否 | BF103: 否 | BG103: 否 | BH103: 是 | BI103: 否 | BJ103: 否 | BK103: 3040 | BL103: 33 | BM103: 105
A104: 100 | B104: 成都市都江堰春盛中药饮片股份有限公司 | C104: 91510100684561633w | D104: 医药制造业 | E104: 2730 | F104: 都江堰市经济开发区金藤大道15号 | G104: 青城山旅游装备产业功能区 | H104: 22760.6 | I104: -2749.46 | J104: 12859.53 | K104: -278.3 | L104: 8684.88 | M104: -4136.57 | N104: 29.98 | O104: 91.01 | P104: 260 | Q104: 89 | R104: 36.88 | S104: 41.32 | T104: 18338.59 | U104: 11201.4 | V104: 否 | W104: -47.630 | X104: 是 | Y104: 是 | Z104: 否 | AA104: 是 | AB104: 是 | AC104: 是 | AD104: 否 | AE104: 否 | AF104: 否 | AG104: 否 | AH104: -37.98% | AI104: 否 | AJ104: 否 | AK104: 是 | AL104: 否 | AM104: 否 | AN104: 否 | AO104: 否 | AP104: 否 | AQ104: 否 | AR104: 是 | AS104: 是 | AT104: 否 | AU104: 否 | AV104: 是 | AW104: 否 | AX104: 否 | AY104: 是 | AZ104: 否 | BA104: 无 | BB104: 无 | BC104: 无 | BD104: 无 | BE104: 是 | BF104: 否 | BG104: 否 | BH104: 是 | BI104: 否 | BJ104: 否 | BK104: 8684.88 | BL104: -4136.57 | BM104: 91.01
A105: 101 | B105: 都江堰福润肉类加工有限公司 | C105: 91510181762258470L | D105: 其他制造业 | E105: 131 | F105: 都江堰市灌温路1801号 | G105: 奎光塔街道 | H105: 6430 | I105: -113.8 | J105: 9641 | K105: -27.5 | L105: 17257 | M105: -133.6 | N105: 100 | O105: 56.3 | P105: 23 | Q105: 51 | R105: 76.64 | S105: =34.32+6.435+11.22+0.462 -> 52.437 | T105: 4621.5 | U105: 5345.9 | V105: 否 | W105: -0.774 | X105: 是 | Y105: 是 | Z105: 否 | AA105: 否 | AB105: 是 | AC105: 否 | AD105: 否 | AE105: 否 | AF105: 否 | AG105: 是 | AH105: 64.47% | AI105: 是 | AJ105: 否 | AK105: 否 | AL105: 否 | AM105: 否 | AN105: 否 | AO105: 否 | AP105: 否 | AQ105: 是 | AR105: 否 | AS105: 否 | AT105: 否 | AU105: 否 | AV105: 否 | AW105: 是 | AX105: 是 | AY105: 是 | AZ105: 否 | BA105: 是 | BB105: 无 | BC105: 无 | BD105: 4 | BE105: 否 | BF105: 否 | BG105: 是 | BH105: 是 | BI105: 否 | BJ105: 否 | BK105: 17257 | BL105: -133.6 | BM105: 56.3
A106: 102 | B106: 成都恒达光学有限公司 | C106: 91510181202770361E | D106: 制造业 | E106: 3052 | F106: 四川省成都市都江堰市四川都江堰市经济开发区光泰路12号 | G106: 四川都江堰市经济开发区光泰路12号 | H106: 11002.7 | I106: 223.1 | J106: 10801.6 | K106: 223.1 | L106: 11271.5 | M106: 314.9 | N106: 66 | O106: 324.7 | P106: 487.5 | Q106: 207 | R106: 819 | S106: 9762 | T106: 7230.8 | U106: 105.2 | V106: 是 | W106: 2.794 | X106: 否 | Y106: 是 | Z106: 否 | AA106: 否 | AB106: 否 | AC106: 否 | AD106: 否 | AE106: 否 | AF106: 否 | AG106: 是 | AH106: 1.26% | AI106: 否 | AJ106: 否 | AK106: 是 | AL106: 否 | AM106: 否 | AN106: 是 | AO106: 否 | AP106: 否 | AQ106: 否 | AR106: 否 | AS106: 否 | AT106: 否 | AU106: 否 | AV106: 是 | AW106: 否 | AX106: 是 | AY106: 是 | AZ106: 否 | BA106: 无 | BB106: 无 | BC106: 无 | BD106: 3 | BE106: 否 | BF106: 否 | BG106: 否 | BH106: 否 | BI106: 否 | BJ106: 否 | BK106: 11271.5 | BL106: 314.9 | BM106: 324.7
A107: 103 | B107: 成都宁江科技有限公司 | C107: 91510181574642686J | D107: 专用设备制造业 | E107: 3599 | F107: 都江堰市永安道到南一段180号 | G107: 奎光塔街道办 | H107: 18683.3 | I107: 1.8 | J107: 16330.4 | K107: -130.3 | L107: 17223.7 | M107: 33.9 | N107: 9.2 | O107: -39.42 | P107: 0 | Q107: 69 | R107: 8.33 | S107: 0 | T107: 9363.9 | U107: 7961.6 | V107: 否 | W107: 0.197 | X107: 否 | Y107: 无 | Z107: 否 | AA107: 否 | AB107: 否 | AC107: 否 | AD107: 否 | AE107: 否 | AF107: 否 | AG107: 是 | AH107: -3.56% | AI107: 否 | AJ107: 否 | AK107: 否 | AL107: 否 | AM107: 否 | AN107: 否 | AO107: 是 | AP107: 是 | AQ107: 否 | AR107: 否 | AS107: 否 | AT107: 否 | AU107: 否 | AV107: 否 | AW107: 否 | AX107: 是 | AY107: 是 | AZ107: 否 | BA107: 无 | BB107: 无 | BC107: 无 | BD107: 3 | BE107: 否 | BF107: 否 | BG107: 是 | BH107: 是 | BI107: 是 | BJ107: 是 | BK107: 17223.7 | BL107: 33.9 | BM107: 50.2
